Workbook

Sheet INFOS
B1: CE PETIT PROGRAMME EST FAIT POUR VOUS FACILITER LA GESTION DES INTERCLUBS PAR EQUIPES PROMOTION MID AMATEURS DAMES SELON LA FORME DE JEU PRECONISEE PAR LA FFGOLF
B3: AVANT TOUTES CHOSES, IL VOUS FAUT ACTUALISER LES TABLEAUX DES PAGES SUIVANTES COMME-SUIT:
A5: 1: | B5: EN FONCTION DU NOMBRE D'EQUIPES INSCRITES ( DE 4 A 24 POSSIBLES), CLIQUEZ SUR LE BOUTON CORRESPONDANT CI-DESSOUS. SI LE PROGRAMME VOUS DEMANDE UN MOT DE PASSE, TAPER: JBDB EN LETTRES MAJUSCULES.
B7: Nombre d'équipes:
A11: 2: | B11: UNE FOIS QUE VOS TABLEAUX SONT ADAPTES AU NOMBRE D'EQUIPES PARTICIPANTES ET AU NOMBRE D'EQUIPES QUALIFIEES, COPIEZ CE FICHIER SUR LE DISQUE DUR. ATTENTION: SI VOUS CHANGEZ LE NOM DE CE FICHIER, LES MACROS AFFECTEES AUX BOUTONS CI-DESSUS AINSI QUE LES CLASSEMENTS NE FONCTIONNERONT PLUS. VOUS POUVEZ FAIRE DES SAUVEGARDES SUR DISQUETTE AU FUR ET A MESURE QUE LA COMPETITION AVANCE. POUR PALLIER UNE PANNE TOTALE D'INFORMATIQUE PENDANT LA COMPETITION, IMPRIMEZ TOUTES LES FEUILLES VIERGES POUR POUVOIR, LE CAS ECHEANT, TRAVAILLER EN MANUEL.

Sheet Prépa
A1: REMPLIR CETTE FEUILLE AVEC LE TITRE DE LA COMPETITION ET LE NOM DES CLUBS PARTICIPANT DE PREFERENCE DANS L'ORDRE DES DEPARTS OU PAR ORDRE ALPHABETIQUE.LES FEUILLES SONT PROTEGEES, EN CAS DE BESOIN UTILISER: JBDB
A2: TITRE DE LA COMPETITION : | D2: INTERCLUBS PAR EQUIPES PROMOTION MID DAMES
A4: Sous TITRE DE LA COMPETITION : | D4: Inter régions OUEST
A6: Date et Lieu : | D6: 19 et 20 juin 2021 au Golf de Saint Cast
A8: Nombre d'équipes montant en 3ème Division: | E8: 3
A11: NOM DES CLUBS : | C11: 1 | D11: BAUGE
C13: 2 | D13: BOIS D'O
C15: 3 | D15: CH. CHEVERNY
C17: 4 | D17: CHARTRES FONTENAY
C19: 5 | D19: CHOLET
C21: 6 | D21: GLORIETTE
C23: 7 | D23: LAC AU DUC
C25: 8 | D25: LAVAL
C27: 9 | D27: NANTES ERDRE
C29: 10 | D29: ORLEANS DONNERY
C31: 11 | D31: PLENEUF VAL ANDRE
C33: 12 | D33: SABLES D'OR
C35: 13 | D35: SAINT CAST
C37: 14 | D37: SAVENAY
C39: 15
C41: 16
C43: 17
C45: 18
C47: 19
C49: 20
C51: 21
C53: 22
C55: 23
C57: 24
C59: 25
C61: 26

Sheet Particip
A1: REMPLIR CETTE FEUILLE ( par ordre d'index) AVEC LES NOMS, PRENOMS DES JOUEURS ET LEUR INDEX AVEC DECIMALE, L'ARRONDI SE FAIT AUTOMATIQUEMENT
A4: =Prépa!$D$2 -> INTERCLUBS PAR EQUIPES PROMOTION MID DAMES
A5: =Prépa!$D$4 -> Inter régions OUEST
A6: =Prépa!$D$6 -> 19 et 20 juin 2021 au Golf de Saint Cast
A9: Fiche de composition d'Equipe
A10: Equipières du club de : | E10: =Prépa!$D$11 -> BAUGE
B11: Ind | C11: NOM | F11: Prénom | H11: Ind. Arr.
A12: 1 | B12: 14.2 | C12: L'HOSTIS Annie | H12: =IF(B12="","",B12) -> 14.2
A13: 2 | B13: 16.7 | C13: CHAUVEL Yung | H13: =IF(B13="","",B13) -> 16.7
A14: 3 | B14: 21.5 | C14: FRAPREAU Colette | H14: 21.5
A15: 4 | B15: 21.6 | C15: BESSONNEAU Nadine | H15: 21.6
A16: 5 | B16: 22.5 | C16: SOUEF Isabelle | H16: 22.5
A17: 6 | B17: 22.9 | C17: OUDIN Martine | H17: 22.9
A18: 7 | B18: 24.7 | C18: AINAULT Cecile | H18: 24.7
A19: 8
A20: Personne autorisée à donner des conseils :
A21: Si cette personne n'est pas le capitaine, ce dernier ne pourra pas donner de conseils dans les conditions fixées par la note de la règle de golf n°8
A22: CAPITAINE :
A24: DATE : | D24: Signature du Capitaine
A27: =Prépa!$D$2 -> INTERCLUBS PAR EQUIPES PROMOTION MID DAMES
A28: =Prépa!$D$4 -> Inter régions OUEST
A29: =Prépa!$D$6 -> 19 et 20 juin 2021 au Golf de Saint Cast
A32: Fiche de composition d'Equipe
A33: Equipières du club de : | E33: =Prépa!$D$13 -> BOIS D'O
B34: Ind | C34: NOM | F34: Prénom | H34: Ind. Arr.
A35: 1 | B35: 14 | C35: CASTEL Stéfany | H35: =IF(B35="","",B35) -> 14
A36: 2 | B36: 17.7 | C36: REGEON Catherine | H36: =IF(B36="","",B36) -> 17.7
A37: 3 | B37: 17.9 | C37: HOUGUET Chantal | H37: 17.9
A38: 4 | B38: 18.1 | C38: BABILLIOT Marie- Catherine | H38: 18.1
A39: 5 | B39: 19.4 | C39: VECTEN Véronique | H39: 19.4
A40: 6 | B40: 20.1 | C40: POULLAIN Muriel | H40: 20.1
A41: 7 | B41: 23.9 | C41: JOSSE Marie-Chri | H41: 23.9
A42: 8
A43: Personne autorisée à donner des conseils :
A44: Si cette personne n'est pas le capitaine, ce dernier ne pourra pas donner de conseils dans les conditions fixées par la note de la règle de golf n°8
A45: CAPITAINE :
A47: DATE : | D47: Signature du Capitaine
A50: =Prépa!$D$2 -> INTERCLUBS PAR EQUIPES PROMOTION MID DAMES
A51: =Prépa!$D$4 -> Inter régions OUEST
A52: =Prépa!$D$6 -> 19 et 20 juin 2021 au Golf de Saint Cast
A55: Fiche de composition d'Equipe
A56: Equipières du club de : | E56: =Prépa!$D$15 -> CH. CHEVERNY
B57: Ind | C57: NOM | F57: Prénom | H57: Ind. Arr.
A58: 1 | B58: 8.8 | C58: LORILLOU Carole | H58: =IF(B58="","",B58) -> 8.8
A59: 2 | B59: 11 | C59: MARROCCO Maryline | H59: =IF(B59="","",B59) -> 11
A60: 3 | B60: 12.5 | C60: BOURDEAU Josiane | H60: 12.5
A61: 4 | B61: 13.5 | C61: COUASSE Isabelle | H61: 13.5
A62: 5 | B62: 15.7 | C62: BERNON Patricia | H62: 15.7
A63: 6 | B63: 17.8 | C63: REVET Josiane | H63: 17.8
A64: 7
A65: 8
A66: Personne autorisée à donner des conseils :
A67: Si cette personne n'est pas le capitaine, ce dernier ne pourra pas donner de conseils dans les conditions fixées par la note de la règle de golf n°8
A68: CAPITAINE :
A70: DATE : | D70: Signature du Capitaine
A73: =Prépa!$D$2 -> INTERCLUBS PAR EQUIPES PROMOTION MID DAMES
A74: =Prépa!$D$4 -> Inter régions OUEST
A75: =Prépa!$D$6 -> 19 et 20 juin 2021 au Golf de Saint Cast
A78: Fiche de composition d'Equipe
A79: Equipières du club de : | E79: =Prépa!$D$17 -> CHARTRES FONTENAY
B80: Ind | C80: NOM | F80: Prénom | H80: Ind. Arr.
A81: 1 | B81: 3.6 | C81: KACZMAREK Nathalie | H81: =IF(B81="","",B81) -> 3.6
A82: 2 | B82: 13.2 | C82: DORISE Celine | H82: =IF(B82="","",B82) -> 13.2
A83: 3 | B83: 14.5 | C83: TREMBLAY Fabienne | H83: 14.5
A84: 4 | B84: 14.6 | C84: SERINET Carole | H84: 14.6
A85: 5 | B85: 25.7 | C85: PASQUET Anne-Charlotte | H85: 25.7
A86: 6 | B86: 28.2 | C86: BESNARD Delphine | H86: 28.2
A87: 7
A88: 8
A89: Personne autorisée à donner des conseils :
A90: Si cette personne n'est pas le capitaine, ce dernier ne pourra pas donner de conseils dans les conditions fixées par la note de la règle de golf n°8
A91: CAPITAINE :
A93: DATE : | D93: Signature du Capitaine
A96: =Prépa!$D$2 -> INTERCLUBS PAR EQUIPES PROMOTION MID DAMES
A97: =Prépa!$D$4 -> Inter régions OUEST
A98: =Prépa!$D$6 -> 19 et 20 juin 2021 au Golf de Saint Cast
A101: Fiche de composition d'Equipe
A102: Equipières du club de : | E102: =Prépa!$D$19 -> CHOLET
B103: Ind | C103: NOM | F103: Prénom | H103: Ind. Arr.
A104: 1 | B104: 12 | C104: CESBRON Annie | H104: =IF(B104="","",B104) -> 12
A105: 2 | B105: 12.7 | C105: DEMARET Evelyne | H105: =IF(B105="","",B105) -> 12.7
A106: 3 | B106: 16.2 | C106: ROUSSEAU Marie-Christine | H106: 16.2
A107: 4 | B107: 17.5 | C107: GRAVOUEILLE Chantal | H107: 17.5
A108: 5 | B108: 18 | C108: JULIENNE Virginie | H108: 18
A109: 6 | B109: 18.7 | C109: PETRELLA Anne | H109: 18.7
A110: 7 | B110: 19 | C110: BERARD Véronique | H110: 19
A111: 8
A112: Personne autorisée à donner des conseils :
A113: Si cette personne n'est pas le capitaine, ce dernier ne pourra pas donner de conseils dans les conditions fixées par la note de la règle de golf n°8
A114: CAPITAINE :
A116: DATE : | D116: Signature du Capitaine
A119: =Prépa!$D$2 -> INTERCLUBS PAR EQUIPES PROMOTION MID DAMES
A120: =Prépa!$D$4 -> Inter régions OUEST
A121: =Prépa!$D$6 -> 19 et 20 juin 2021 au Golf de Saint Cast
A124: Fiche de composition d'Equipe
A125: Equipières du club de : | E125: =Prépa!$D$21 -> GLORIETTE
B126: Ind | C126: NOM | F126: Prénom | H126: Ind. Arr.
A127: 1 | B127: 15.8 | C127: MILLET Isabelle | H127: =IF(B127="","",B127) -> 15.8
A128: 2 | B128: 20.5 | C128: GEORGE Catherine | H128: =IF(B128="","",B128) -> 20.5
A129: 3 | B129: 21.1 | C129: NARDY Marie José | H129: 21.1
A130: 4 | B130: 23.1 | C130: CHAUSSONNIERE Catherine | H130: 23.1
A131: 5 | B131: 23.8 | C131: BARRON Nathalie | H131: 23.8
A132: 6
A133: 7
A134: 8
A135: Personne autorisée à donner des conseils :
A136: Si cette personne n'est pas le capitaine, ce dernier ne pourra pas donner de conseils dans les conditions fixées par la note de la règle de golf n°8
A137: CAPITAINE :
A139: DATE : | D139: Signature du Capitaine
A142: =Prépa!$D$2 -> INTERCLUBS PAR EQUIPES PROMOTION MID DAMES
A143: =Prépa!$D$4 -> Inter régions OUEST
A144: =Prépa!$D$6 -> 19 et 20 juin 2021 au Golf de Saint Cast
A147: Fiche de composition d'Equipe
A148: Equipières du club de : | E148: =Prépa!$D$23 -> LAC AU DUC
B149: Ind | C149: NOM | F149: Prénom | H149: Ind. Arr.
A150: 1 | B150: 4.9 | C150: URVOIS Christelle | H150: =IF(B150="","",B150) -> 4.9
A151: 2 | B151: 10.3 | C151: ECHELARD Sylvie | H151: =IF(B151="","",B151) -> 10.3
A152: 3 | B152: 12.5 | C152: RIGUIDEL Annick | H152: 12.5
A153: 4 | B153: 13.9 | C153: LEGRAND Véronique | H153: 13.9
A154: 5 | B154: 16.8 | C154: VISSER Maryvonne | H154: 16.8
A155: 6
A156: 7
A157: 8
A158: Personne autorisée à donner des conseils :
A159: Si cette personne n'est pas le capitaine, ce dernier ne pourra pas donner de conseils dans les conditions fixées par la note de la règle de golf n°8
A160: CAPITAINE :
A162: DATE : | D162: Signature du Capitaine
A165: =Prépa!$D$2 -> INTERCLUBS PAR EQUIPES PROMOTION MID DAMES
A166: =Prépa!$D$4 -> Inter régions OUEST
A167: =Prépa!$D$6 -> 19 et 20 juin 2021 au Golf de Saint Cast
A170: Fiche de composition d'Equipe
A171: Equipières du club de : | E171: =Prépa!$D$25 -> LAVAL
B172: Ind | C172: NOM | F172: Prénom | H172: Ind. Arr.
A173: 1 | B173: 6.2 | C173: NAIRIERE Dominique | H173: =IF(B173="","",B173) -> 6.2
A174: 2 | B174: 9.9 | C174: RAIMBAULT Fabienne | H174: =IF(B174="","",B174) -> 9.9
A175: 3 | B175: 14.8 | C175: CHAPPE Estelle | H175: 14.8
A176: 4 | B176: 14.9 | C176: LEFORT Nathalie | H176: 14.9
A177: 5 | B177: 15.6 | C177: LE ROY Sylviane | H177: 15.6
A178: 6 | B178: 16.1 | C178: HUBERT Marie-Christine | H178: 16.1
A179: 7 | B179: 17.2 | C179: BOUREL Catherine | H179: 17.2
A180: 8
A181: Personne autorisée à donner des conseils :
A182: Si cette personne n'est pas le capitaine, ce dernier ne pourra pas donner de conseils dans les conditions fixées par la note de la règle de golf n°8
A183: CAPITAINE :
A185: DATE : | D185: Signature du Capitaine
A188: =Prépa!$D$2 -> INTERCLUBS PAR EQUIPES PROMOTION MID DAMES
A189: =Prépa!$D$4 -> Inter régions OUEST
A190: =Prépa!$D$6 -> 19 et 20 juin 2021 au Golf de Saint Cast
A193: Fiche de composition d'Equipe
A194: Equipières du club de : | E194: =Prépa!$D$27 -> NANTES ERDRE
B195: Ind | C195: NOM | F195: Prénom | H195: Ind. Arr.
A196: 1 | B196: 4.8 | C196: TERRIER Emmanuelle | H196: =IF(B196="","",B196) -> 4.8
A197: 2 | B197: 5.7 | C197: MATHY Marie | H197: =IF(B197="","",B197) -> 5.7
A198: 3 | B198: 9.1 | C198: GOFFIN Valérie | H198: 9.1
A199: 4 | B199: 11.1 | C199: POINTEAU Sophie | H199: 11.1
A200: 5 | B200: 11.1 | C200: TRICHET Eglantine | H200: 11.1
A201: 6 | B201: 12.8 | C201: DE BRAY Christine | H201: 12.8
A202: 7 | B202: 13 | C202: DELAUNAY Anne | H202: 13
A203: 8 | B203: 13.6 | C203: FRIOUX Christelle | H203: 13.6
A204: Personne autorisée à donner des conseils :
A205: Si cette personne n'est pas le capitaine, ce dernier ne pourra pas donner de conseils dans les conditions fixées par la note de la règle de golf n°8
A206: CAPITAINE :
A208: DATE : | D208: Signature du Capitaine
A211: =Prépa!$D$2 -> INTERCLUBS PAR EQUIPES PROMOTION MID DAMES
A212: =Prépa!$D$4 -> Inter régions OUEST
A213: =Prépa!$D$6 -> 19 et 20 juin 2021 au Golf de Saint Cast
A216: Fiche de composition d'Equipe
A217: Equipières du club de : | E217: =Prépa!$D$29 -> ORLEANS DONNERY
B218: Ind | C218: NOM | F218: Prénom | H218: Ind. Arr.
A219: 1 | B219: 12.2 | C219: FILLEUL Nathalie | H219: =IF(B219="","",B219) -> 12.2
A220: 2 | B220: 12.8 | C220: BREUVART Christine | H220: =IF(B220="","",B220) -> 12.8
A221: 3 | B221: 15.8 | C221: DEHE Delphine | H221: 15.8
A222: 4 | B222: 16.8 | C222: BIMBENET Pascale | H222: 16.8
A223: 5 | B223: 19.6 | C223: AUTHIER Nathalie | H223: 19.6
A224: 6 | B224: 21.1 | C224: MAINGUET Odile | H224: 21.1
A225: 7
A226: 8
A227: Personne autorisée à donner des conseils :
A228: Si cette personne n'est pas le capitaine, ce dernier ne pourra pas donner de conseils dans les conditions fixées par la note de la règle de golf n°8
A229: CAPITAINE :
A231: DATE : | D231: Signature du Capitaine
A234: =Prépa!$D$2 -> INTERCLUBS PAR EQUIPES PROMOTION MID DAMES
A235: =Prépa!$D$4 -> Inter régions OUEST
A236: =Prépa!$D$6 -> 19 et 20 juin 2021 au Golf de Saint Cast
A239: Fiche de composition d'Equipe
A240: Equipières du club de : | E240: =Prépa!$D$31 -> PLENEUF VAL ANDRE
B241: Ind | C241: NOM | F241: Prénom | H241: Ind. Arr.
A242: 1 | B242: 14.5 | C242: LE FLAHEC Olga | H242: =IF(B242="","",B242) -> 14.5
A243: 2 | B243: 15.7 | C243: FLOQUET Francoise | H243: =IF(B243="","",B243) -> 15.7
A244: 3 | B244: 15.8 | C244: ROUXEL Marie-Laure | H244: 15.8
A245: 4 | B245: 16.6 | C245: BASLE Janick | H245: 16.6
A246: 5 | B246: 17.1 | C246: TROALEN Juliette | H246: 17.1
A247: 6 | B247: 17.8 | C247: CINTAS Marie Claude | H247: 17.8
A248: 7 | B248: 17.9 | C248: GAVARD Samira | H248: 17.9
A249: 8
A250: Personne autorisée à donner des conseils :
A251: Si cette personne n'est pas le capitaine, ce dernier ne pourra pas donner de conseils dans les conditions fixées par la note de la règle de golf n°8
A252: CAPITAINE :
A254: DATE : | D254: Signature du Capitaine
A257: =Prépa!$D$2 -> INTERCLUBS PAR EQUIPES PROMOTION MID DAMES
... 269 more rows

Sheet Donnees
A1: Cliquez dans la cellule du nom du joueur puis sur la fléche et choisir le nom dans le menu déroulant. Vous pouvez, au choix, soit rentrer directement le score du joueur soit, en faisant "click droit" sur la cellule, rentrer la carte de score.En cas de forfait, abandon ou disqualification, inscrire: FOR,ABN ou DIS dans la colonne de score.LES CALCULS SONT FAITS AUTOMATIQUEMENT. POUR OBTENIR LE CLASSEMENT PROVISOIRE OU DEFINITIF, CLIQUER SUR LE BOUTON CI-DESSOUS.
A2: Si le nombre de vagues complètes à la fin du 2ème Tour est inférieur à 4, inscrire le nombre de vagues complètes ci-contre (mini 3) : Attention à ne pas mettre de score dans les cases grises qui apparaissent si le nombre de vagues est inférieur à 4 | R2: e | U2: =Prépa!$D11 -> BAUGE | W2: =Prépa!$D13 -> BOIS D'O | Y2: =Prépa!$D15 -> CH. CHEVERNY | AA2: =Prépa!$D17 -> CHARTRES FONTENAY | AC2: =Prépa!$D19 -> CHOLET | AE2: =Prépa!$D21 -> GLORIETTE | AG2: =Prépa!$D23 -> LAC AU DUC | AI2: =Prépa!$D25 -> LAVAL | AK2: =Prépa!$D27 -> NANTES ERDRE | AM2: =Prépa!$D29 -> ORLEANS DONNERY | AO2: =Prépa!$D31 -> PLENEUF VAL ANDRE | AQ2: =Prépa!$D33 -> SABLES D'OR | AS2: =Prépa!$D35 -> SAINT CAST | AU2: =Prépa!$D37 -> SAVENAY | AW2: =Prépa!$D39 -> 0 | AY2: =Prépa!$D41 -> 0 | BA2: =Prépa!$D43 -> 0 | BC2: =Prépa!$D45 -> 0 | BE2: =Prépa!$D47 -> 0 | BG2: =Prépa!$D49 -> 0 | BI2: =Prépa!$D51 -> 0 | BK2: =Prépa!$D53 -> 0 | BM2: =Prépa!$D55 -> 0 | BO2: =Prépa!$D57 -> 0 | BQ2: =Prépa!$D59 -> 0 | BS2: =Prépa!$D61 -> 0
A3: =Prépa!D2 -> INTERCLUBS PAR EQUIPES PROMOTION MID DAMES | U3: =Particip!$C12 -> L'HOSTIS Annie | V3: =Particip!$B12 -> 14.2 | W3: =Particip!$C35 -> CASTEL Stéfany | X3: =Particip!$B35 -> 14 | Y3: =Particip!$C58 -> LORILLOU Carole | Z3: =Particip!$B58 -> 8.8 | AA3: =Particip!$C81 -> KACZMAREK Nathalie | AB3: =Particip!$B81 -> 3.6 | AC3: =Particip!$C104 -> CESBRON Annie | AD3: =Particip!$B104 -> 12 | AE3: =Particip!$C127 -> MILLET Isabelle | AF3: =Particip!$B127 -> 15.8 | AG3: =Particip!$C150 -> URVOIS Christelle | AH3: =Particip!$B150 -> 4.9 | AI3: =Particip!$C173 -> NAIRIERE Dominique | AJ3: =Particip!$B173 -> 6.2 | AK3: =Particip!$C196 -> TERRIER Emmanuelle | AL3: =Particip!$B196 -> 4.8 | AM3: =Particip!$C219 -> FILLEUL Nathalie | AN3: =Particip!$B219 -> 12.2 | AO3: =Particip!$C242 -> LE FLAHEC Olga | AP3: =Particip!$B242 -> 14.5 | AQ3: =Particip!$C265 -> FLANDIN Virginie | AR3: =Particip!$B265 -> 3.9 | AS3: =Particip!$C288 -> ESCALONA Elodie | AT3: =Particip!$B288 -> 1.4 | AU3: =Particip!$C311 -> BRAIRE Magali | AV3: =Particip!$B311 -> 7.2 | AW3: =Particip!$C334 -> 0 | AX3: =Particip!$B334 -> 0 | AY3: =Particip!$C357 -> 0 | AZ3: =Particip!$B357 -> 0 | BA3: =Particip!$C380 -> 0 | BB3: =Particip!$B380 -> 0 | BC3: =Particip!$C403 -> 0 | BD3: =Particip!$B403 -> 0 | BE3: =Particip!$C426 -> 0 | BF3: =Particip!$B426 -> 0 | BG3: =Particip!$C449 -> 0 | BH3: =Particip!$B449 -> 0 | BI3: =Particip!$C472 -> 0 | BJ3: =Particip!$B472 -> 0 | BK3: =Particip!$C495 -> 0 | BL3: =Particip!$B495 -> 0 | BM3: =Particip!$C518 -> 0 | BN3: =Particip!$B518 -> 0 | BO3: =Particip!$C541 -> 0 | BP3: =Particip!$B541 -> 0 | BQ3: =Particip!$C564 -> 0 | BR3: =Particip!$B564 -> 0 | BS3: =Particip!$C587 -> 0 | BT3: =Particip!$B587 -> 0
A4: =Prépa!D4 -> Inter régions OUEST | U4: =Particip!$C13 -> CHAUVEL Yung | V4: =Particip!$B13 -> 16.7 | W4: =Particip!$C36 -> REGEON Catherine | X4: =Particip!$B36 -> 17.7 | Y4: =Particip!$C59 -> MARROCCO Maryline | Z4: =Particip!$B59 -> 11 | AA4: =Particip!$C82 -> DORISE Celine | AB4: =Particip!$B82 -> 13.2 | AC4: =Particip!$C105 -> DEMARET Evelyne | AD4: =Particip!$B105 -> 12.7 | AE4: =Particip!$C128 -> GEORGE Catherine | AF4: =Particip!$B128 -> 20.5 | AG4: =Particip!$C151 -> ECHELARD Sylvie | AH4: =Particip!$B151 -> 10.3 | AI4: =Particip!$C174 -> RAIMBAULT Fabienne | AJ4: =Particip!$B174 -> 9.9 | AK4: =Particip!$C197 -> MATHY Marie | AL4: =Particip!$B197 -> 5.7 | AM4: =Particip!$C220 -> BREUVART Christine | AN4: =Particip!$B220 -> 12.8 | AO4: =Particip!$C243 -> FLOQUET Francoise | AP4: =Particip!$B243 -> 15.7 | AQ4: =Particip!$C266 -> PELE Charlotte | AR4: =Particip!$B266 -> 5.8 | AS4: =Particip!$C289 -> EMSENS Diane | AT4: =Particip!$B289 -> 2.2 | AU4: =Particip!$C312 -> RENOUS Evelyne | AV4: =Particip!$B312 -> 7.9 | AW4: =Particip!$C335 -> 0 | AX4: =Particip!$B335 -> 0 | AY4: =Particip!$C358 -> 0 | AZ4: =Particip!$B358 -> 0 | BA4: =Particip!$C381 -> 0 | BB4: =Particip!$B381 -> 0 | BC4: =Particip!$C404 -> 0 | BD4: =Particip!$B404 -> 0 | BE4: =Particip!$C427 -> 0 | BF4: =Particip!$B427 -> 0 | BG4: =Particip!$C450 -> 0 | BH4: =Particip!$B450 -> 0 | BI4: =Particip!$C473 -> 0 | BJ4: =Particip!$B473 -> 0 | BK4: =Particip!$C496 -> 0 | BL4: =Particip!$B496 -> 0 | BM4: =Particip!$C519 -> 0 | BN4: =Particip!$B519 -> 0 | BO4: =Particip!$C542 -> 0 | BP4: =Particip!$B542 -> 0 | BQ4: =Particip!$C565 -> 0 | BR4: =Particip!$B565 -> 0 | BS4: =Particip!$C588 -> 0 | BT4: =Particip!$B588 -> 0
A5: =Prépa!D6 -> 19 et 20 juin 2021 au Golf de Saint Cast | U5: =Particip!$C14 -> FRAPREAU Colette | V5: =Particip!$B14 -> 21.5 | W5: =Particip!$C37 -> HOUGUET Chantal | X5: =Particip!$B37 -> 17.9 | Y5: =Particip!$C60 -> BOURDEAU Josiane | Z5: =Particip!$B60 -> 12.5 | AA5: =Particip!$C83 -> TREMBLAY Fabienne | AB5: =Particip!$B83 -> 14.5 | AC5: =Particip!$C106 -> ROUSSEAU Marie-Christine | AD5: =Particip!$B106 -> 16.2 | AE5: =Particip!$C129 -> NARDY Marie José | AF5: =Particip!$B129 -> 21.1 | AG5: =Particip!$C152 -> RIGUIDEL Annick | AH5: =Particip!$B152 -> 12.5 | AI5: =Particip!$C175 -> CHAPPE Estelle | AJ5: =Particip!$B175 -> 14.8 | AK5: =Particip!$C198 -> GOFFIN Valérie | AL5: =Particip!$B198 -> 9.1 | AM5: =Particip!$C221 -> DEHE Delphine | AN5: =Particip!$B221 -> 15.8 | AO5: =Particip!$C244 -> ROUXEL Marie-Laure | AP5: =Particip!$B244 -> 15.8 | AQ5: =Particip!$C267 -> LEMERCIER Delphine | AR5: =Particip!$B267 -> 11.8 | AS5: =Particip!$C290 -> DUPUY Sophie | AT5: =Particip!$B290 -> 4.2 | AU5: =Particip!$C313 -> BURGESS Caroline | AV5: =Particip!$B313 -> 11.5 | AW5: =Particip!$C336 -> 0 | AX5: =Particip!$B336 -> 0 | AY5: =Particip!$C359 -> 0 | AZ5: =Particip!$B359 -> 0 | BA5: =Particip!$C382 -> 0 | BB5: =Particip!$B382 -> 0 | BC5: =Particip!$C405 -> 0 | BD5: =Particip!$B405 -> 0 | BE5: =Particip!$C428 -> 0 | BF5: =Particip!$B428 -> 0 | BG5: =Particip!$C451 -> 0 | BH5: =Particip!$B451 -> 0 | BI5: =Particip!$C474 -> 0 | BJ5: =Particip!$B474 -> 0 | BK5: =Particip!$C497 -> 0 | BL5: =Particip!$B497 -> 0 | BM5: =Particip!$C520 -> 0 | BN5: =Particip!$B520 -> 0 | BO5: =Particip!$C543 -> 0 | BP5: =Particip!$B543 -> 0 | BQ5: =Particip!$C566 -> 0 | BR5: =Particip!$B566 -> 0 | BS5: =Particip!$C589 -> 0 | BT5: =Particip!$B589 -> 0
U6: =Particip!$C15 -> BESSONNEAU Nadine | V6: =Particip!$B15 -> 21.6 | W6: =Particip!$C38 -> BABILLIOT Marie- Catherine | X6: =Particip!$B38 -> 18.1 | Y6: =Particip!$C61 -> COUASSE Isabelle | Z6: =Particip!$B61 -> 13.5 | AA6: =Particip!$C84 -> SERINET Carole | AB6: =Particip!$B84 -> 14.6 | AC6: =Particip!$C107 -> GRAVOUEILLE Chantal | AD6: =Particip!$B107 -> 17.5 | AE6: =Particip!$C130 -> CHAUSSONNIERE Catherine | AF6: =Particip!$B130 -> 23.1 | AG6: =Particip!$C153 -> LEGRAND Véronique | AH6: =Particip!$B153 -> 13.9 | AI6: =Particip!$C176 -> LEFORT Nathalie | AJ6: =Particip!$B176 -> 14.9 | AK6: =Particip!$C199 -> POINTEAU Sophie | AL6: =Particip!$B199 -> 11.1 | AM6: =Particip!$C222 -> BIMBENET Pascale | AN6: =Particip!$B222 -> 16.8 | AO6: =Particip!$C245 -> BASLE Janick | AP6: =Particip!$B245 -> 16.6 | AQ6: =Particip!$C268 -> HUCHET Françoise | AR6: =Particip!$B268 -> 14 | AS6: =Particip!$C291 -> CHATELLIER Joelle | AT6: =Particip!$B291 -> 8.9 | AU6: =Particip!$C314 -> HEULOT Anita | AV6: =Particip!$B314 -> 11.8 | AW6: =Particip!$C337 -> 0 | AX6: =Particip!$B337 -> 0 | AY6: =Particip!$C360 -> 0 | AZ6: =Particip!$B360 -> 0 | BA6: =Particip!$C383 -> 0 | BB6: =Particip!$B383 -> 0 | BC6: =Particip!$C406 -> 0 | BD6: =Particip!$B406 -> 0 | BE6: =Particip!$C429 -> 0 | BF6: =Particip!$B429 -> 0 | BG6: =Particip!$C452 -> 0 | BH6: =Particip!$B452 -> 0 | BI6: =Particip!$C475 -> 0 | BJ6: =Particip!$B475 -> 0 | BK6: =Particip!$C498 -> 0 | BL6: =Particip!$B498 -> 0 | BM6: =Particip!$C521 -> 0 | BN6: =Particip!$B521 -> 0 | BO6: =Particip!$C544 -> 0 | BP6: =Particip!$B544 -> 0 | BQ6: =Particip!$C567 -> 0 | BR6: =Particip!$B567 -> 0 | BS6: =Particip!$C590 -> 0 | BT6: =Particip!$B590 -> 0
A7: =IF(R16>0,"1ère ET 2ème JOURNEES","1ère JOURNEE") -> 1ère ET 2ème JOURNEES | U7: =Particip!$C16 -> SOUEF Isabelle | V7: =Particip!$B16 -> 22.5 | W7: =Particip!$C39 -> VECTEN Véronique | X7: =Particip!$B39 -> 19.4 | Y7: =Particip!$C62 -> BERNON Patricia | Z7: =Particip!$B62 -> 15.7 | AA7: =Particip!$C85 -> PASQUET Anne-Charlotte | AB7: =Particip!$B85 -> 25.7 | AC7: =Particip!$C108 -> JULIENNE Virginie | AD7: =Particip!$B108 -> 18 | AE7: =Particip!$C131 -> BARRON Nathalie | AF7: =Particip!$B131 -> 23.8 | AG7: =Particip!$C154 -> VISSER Maryvonne | AH7: =Particip!$B154 -> 16.8 | AI7: =Particip!$C177 -> LE ROY Sylviane | AJ7: =Particip!$B177 -> 15.6 | AK7: =Particip!$C200 -> TRICHET Eglantine | AL7: =Particip!$B200 -> 11.1 | AM7: =Particip!$C223 -> AUTHIER Nathalie | AN7: =Particip!$B223 -> 19.6 | AO7: =Particip!$C246 -> TROALEN Juliette | AP7: =Particip!$B246 -> 17.1 | AQ7: =Particip!$C269 -> COQUELET Chantal | AR7: =Particip!$B269 -> 15.3 | AS7: =Particip!$C292 -> LE COTTIER Christelle | AT7: =Particip!$B292 -> 8.9 | AU7: =Particip!$C315 -> AUTHIER Yvonne | AV7: =Particip!$B315 -> 18.3 | AW7: =Particip!$C338 -> 0 | AX7: =Particip!$B338 -> 0 | AY7: =Particip!$C361 -> 0 | AZ7: =Particip!$B361 -> 0 | BA7: =Particip!$C384 -> 0 | BB7: =Particip!$B384 -> 0 | BC7: =Particip!$C407 -> 0 | BD7: =Particip!$B407 -> 0 | BE7: =Particip!$C430 -> 0 | BF7: =Particip!$B430 -> 0 | BG7: =Particip!$C453 -> 0 | BH7: =Particip!$B453 -> 0 | BI7: =Particip!$C476 -> 0 | BJ7: =Particip!$B476 -> 0 | BK7: =Particip!$C499 -> 0 | BL7: =Particip!$B499 -> 0 | BM7: =Particip!$C522 -> 0 | BN7: =Particip!$B522 -> 0 | BO7: =Particip!$C545 -> 0 | BP7: =Particip!$B545 -> 0 | BQ7: =Particip!$C568 -> 0 | BR7: =Particip!$B568 -> 0 | BS7: =Particip!$C591 -> 0 | BT7: =Particip!$B591 -> 0
U8: =Particip!$C17 -> OUDIN Martine | V8: =Particip!$B17 -> 22.9 | W8: =Particip!$C40 -> POULLAIN Muriel | X8: =Particip!$B40 -> 20.1 | Y8: =Particip!$C63 -> REVET Josiane | Z8: =Particip!$B63 -> 17.8 | AA8: =Particip!$C86 -> BESNARD Delphine | AB8: =Particip!$B86 -> 28.2 | AC8: =Particip!$C109 -> PETRELLA Anne | AD8: =Particip!$B109 -> 18.7 | AE8: =Particip!$C132 -> 0 | AF8: =Particip!$B132 -> 0 | AG8: =Particip!$C155 -> 0 | AH8: =Particip!$B155 -> 0 | AI8: =Particip!$C178 -> HUBERT Marie-Christine | AJ8: =Particip!$B178 -> 16.1 | AK8: =Particip!$C201 -> DE BRAY Christine | AL8: =Particip!$B201 -> 12.8 | AM8: =Particip!$C224 -> MAINGUET Odile | AN8: =Particip!$B224 -> 21.1 | AO8: =Particip!$C247 -> CINTAS Marie Claude | AP8: =Particip!$B247 -> 17.8 | AQ8: =Particip!$C270 -> VILPASTEUR Monique | AR8: =Particip!$B270 -> 18.3 | AS8: =Particip!$C293 -> CHARDEVEL Catherine | AT8: =Particip!$B293 -> 10.8 | AU8: =Particip!$C316 -> 0 | AV8: =Particip!$B316 -> 0 | AW8: =Particip!$C339 -> 0 | AX8: =Particip!$B339 -> 0 | AY8: =Particip!$C362 -> 0 | AZ8: =Particip!$B362 -> 0 | BA8: =Particip!$C385 -> 0 | BB8: =Particip!$B385 -> 0 | BC8: =Particip!$C408 -> 0 | BD8: =Particip!$B408 -> 0 | BE8: =Particip!$C431 -> 0 | BF8: =Particip!$B431 -> 0 | BG8: =Particip!$C454 -> 0 | BH8: =Particip!$B454 -> 0 | BI8: =Particip!$C477 -> 0 | BJ8: =Particip!$B477 -> 0 | BK8: =Particip!$C500 -> 0 | BL8: =Particip!$B500 -> 0 | BM8: =Particip!$C523 -> 0 | BN8: =Particip!$B523 -> 0 | BO8: =Particip!$C546 -> 0 | BP8: =Particip!$B546 -> 0 | BQ8: =Particip!$C569 -> 0 | BR8: =Particip!$B569 -> 0 | BS8: =Particip!$C592 -> 0 | BT8: =Particip!$B592 -> 0
C9: Equipières du club de : | F9: =Prépa!D11 -> BAUGE | U9: =Particip!$C18 -> AINAULT Cecile | V9: =Particip!$B18 -> 24.7 | W9: =Particip!$C41 -> JOSSE Marie-Chri | X9: =Particip!$B41 -> 23.9 | Y9: =Particip!$C64 -> 0 | Z9: =Particip!$B64 -> 0 | AA9: =Particip!$C87 -> 0 | AB9: =Particip!$B87 -> 0 | AC9: =Particip!$C110 -> BERARD Véronique | AD9: =Particip!$B110 -> 19 | AE9: =Particip!$C133 -> 0 | AF9: =Particip!$B133 -> 0 | AG9: =Particip!$C156 -> 0 | AH9: =Particip!$B156 -> 0 | AI9: =Particip!$C179 -> BOUREL Catherine | AJ9: =Particip!$B179 -> 17.2 | AK9: =Particip!$C202 -> DELAUNAY Anne | AL9: =Particip!$B202 -> 13 | AM9: =Particip!$C225 -> 0 | AN9: =Particip!$B225 -> 0 | AO9: =Particip!$C248 -> GAVARD Samira | AP9: =Particip!$B248 -> 17.9 | AQ9: =Particip!$C271 -> FLANDIN Béatrice | AR9: =Particip!$B271 -> 19.1 | AS9: =Particip!$C294 -> CALENTIER Martine | AT9: =Particip!$B294 -> 19.4 | AU9: =Particip!$C317 -> 0 | AV9: =Particip!$B317 -> 0 | AW9: =Particip!$C340 -> 0 | AX9: =Particip!$B340 -> 0 | AY9: =Particip!$C363 -> 0 | AZ9: =Particip!$B363 -> 0 | BA9: =Particip!$C386 -> 0 | BB9: =Particip!$B386 -> 0 | BC9: =Particip!$C409 -> 0 | BD9: =Particip!$B409 -> 0 | BE9: =Particip!$C432 -> 0 | BF9: =Particip!$B432 -> 0 | BG9: =Particip!$C455 -> 0 | BH9: =Particip!$B455 -> 0 | BI9: =Particip!$C478 -> 0 | BJ9: =Particip!$B478 -> 0 | BK9: =Particip!$C501 -> 0 | BL9: =Particip!$B501 -> 0 | BM9: =Particip!$C524 -> 0 | BN9: =Particip!$B524 -> 0 | BO9: =Particip!$C547 -> 0 | BP9: =Particip!$B547 -> 0 | BQ9: =Particip!$C570 -> 0 | BR9: =Particip!$B570 -> 0 | BS9: =Particip!$C593 -> 0 | BT9: =Particip!$B593 -> 0
B10: Ind | C10: Joueuses de la 1ère Journée | I10: Tour 1 | K10: Ind | L10: Joueuses de la 2ème Journée | R10: Tour 2 | S10: FOR ABN DIS | T10: FOR ABN DIS | U10: =Particip!$C19 -> 0 | V10: =Particip!$B19 -> 0 | W10: =Particip!$C42 -> 0 | X10: =Particip!$B42 -> 0 | Y10: =Particip!$C65 -> 0 | Z10: =Particip!$B65 -> 0 | AA10: =Particip!$C88 -> 0 | AB10: =Particip!$B88 -> 0 | AC10: =Particip!$C111 -> 0 | AD10: =Particip!$B111 -> 0 | AE10: =Particip!$C134 -> 0 | AF10: =Particip!$B134 -> 0 | AG10: =Particip!$C157 -> 0 | AH10: =Particip!$B157 -> 0 | AI10: =Particip!$C180 -> 0 | AJ10: =Particip!$B180 -> 0 | AK10: =Particip!$C203 -> FRIOUX Christelle | AL10: =Particip!$B203 -> 13.6 | AM10: =Particip!$C226 -> 0 | AN10: =Particip!$B226 -> 0 | AO10: =Particip!$C249 -> 0 | AP10: =Particip!$B249 -> 0 | AQ10: =Particip!$C272 -> LE CLECH Viviane | AR10: =Particip!$B272 -> 21.7 | AS10: =Particip!$C295 -> GERARD Catherine | AT10: =Particip!$B295 -> 19.8 | AU10: =Particip!$C318 -> 0 | AV10: =Particip!$B318 -> 0 | AW10: =Particip!$C341 -> 0 | AX10: =Particip!$B341 -> 0 | AY10: =Particip!$C364 -> 0 | AZ10: =Particip!$B364 -> 0 | BA10: =Particip!$C387 -> 0 | BB10: =Particip!$B387 -> 0 | BC10: =Particip!$C410 -> 0 | BD10: =Particip!$B410 -> 0 | BE10: =Particip!$C433 -> 0 | BF10: =Particip!$B433 -> 0 | BG10: =Particip!$C456 -> 0 | BH10: =Particip!$B456 -> 0 | BI10: =Particip!$C479 -> 0 | BJ10: =Particip!$B479 -> 0 | BK10: =Particip!$C502 -> 0 | BL10: =Particip!$B502 -> 0 | BM10: =Particip!$C525 -> 0 | BN10: =Particip!$B525 -> 0 | BO10: =Particip!$C548 -> 0 | BP10: =Particip!$B548 -> 0 | BQ10: =Particip!$C571 -> 0 | BR10: =Particip!$B571 -> 0 | BS10: =Particip!$C594 -> 0 | BT10: =Particip!$B594 -> 0
A11: A | B11: =IF(C11="","",VLOOKUP(C11,$U$3:$V$15,2,FALSE)) -> 14.2 | C11: L'HOSTIS Annie | I11: 86 | J11: A | K11: =IF(L11="","",VLOOKUP(L11,$U$3:$V$15,2,FALSE)) -> 14.2 | L11: L'HOSTIS Annie | R11: 83 | S11: =IF(ISTEXT(I11),1,0) -> 0 | T11: =IF(ISTEXT(R11),1,0) -> 0
A12: B | B12: =IF(C12="","",VLOOKUP(C12,$U$3:$V$15,2,FALSE)) -> 16.7 | C12: CHAUVEL Yung | I12: 96 | J12: B | K12: =IF(L12="","",VLOOKUP(L12,$U$3:$V$15,2,FALSE)) -> 16.7 | L12: CHAUVEL Yung | R12: 95 | S12: =IF(ISTEXT(I12),1,0) -> 0 | T12: =IF(ISTEXT(R12),1,0) -> 0
A13: C | B13: =IF(C13="","",VLOOKUP(C13,$U$3:$V$15,2,FALSE)) -> 22.5 | C13: SOUEF Isabelle | I13: 100 | J13: C | K13: =IF(L13="","",VLOOKUP(L13,$U$3:$V$15,2,FALSE)) -> 21.6 | L13: BESSONNEAU Nadine | R13: 92 | S13: =IF(ISTEXT(I13),1,0) -> 0 | T13: =IF(ISTEXT(R13),1,0) -> 0
A14: D | B14: =IF(C14="","",VLOOKUP(C14,$U$3:$V$15,2,FALSE)) -> 22.9 | C14: OUDIN Martine | I14: 101 | J14: D | K14: =IF(L14="","",VLOOKUP(L14,$U$3:$V$15,2,FALSE)) -> 21.5 | L14: FRAPREAU Colette | R14: 101 | S14: =IF(ISTEXT(I14),1,0) -> 0 | T14: =IF(ISTEXT(R14),1,0) -> 0
A16: =IF(SUM(R11:R14)>0,"Classement Final : ","Classement 1er jour : ") -> Classement Final : | D16: =IF(COUNT(I11:I14)<3,"",VLOOKUP(F9,'Cl.J1+Gen.'!$Z$11:$AV$36,23,FALSE)) -> 14 | E16: =IF(SUM(R11:R14)>0,"Total des 2 Tours : ","Total 1er Tour : ") -> Total des 2 Tours : | G16: =IF(OR(I16="DIS",R16="DIS"),"DIS",I16+R16) -> 552 | I16: =IF(S16>1,"DIS",IF(S16=1,SUM(I11:I14),IF(COUNT(I11:I14)<4,SUM(I11:I14),SUM(I11:I14)-MAX(I11:I14)))) -> 282 | R16: =IF(T16>1,"DIS",IF(T16=1,SUM(R11:R14),IF(COUNT(R11:R14)<4,SUM(R11:R14),SUM(R11:R14)-MAX(R11:R14)))) -> 270 | S16: =SUM(S11:S14) -> 0 | T16: =SUM(T11:T14) -> 0
C18: Equipières du club de : | F18: =Prépa!D13 -> BOIS D'O
B19: Ind | C19: Joueuses de la 1ère Journée | I19: Tour 1 | K19: Ind | L19: Joueuses de la 2ème Journée | R19: Tour 2 | S19: FOR ABN DIS | T19: FOR ABN DIS
A20: A | B20: =IF(C20="","",VLOOKUP(C20,$W$3:$X$15,2,FALSE)) -> 14 | C20: CASTEL Stéfany | I20: 89 | J20: A | K20: =IF(L20="","",VLOOKUP(L20,$W$3:$X$15,2,FALSE)) -> 14 | L20: CASTEL Stéfany | R20: 87 | S20: =IF(ISTEXT(I20),1,0) -> 0 | T20: =IF(ISTEXT(R20),1,0) -> 0
A21: B | B21: =IF(C21="","",VLOOKUP(C21,$W$3:$X$15,2,FALSE)) -> 18.1 | C21: BABILLIOT Marie- Catherine | I21: 92 | J21: B | K21: =IF(L21="","",VLOOKUP(L21,$W$3:$X$15,2,FALSE)) -> 18.1 | L21: BABILLIOT Marie- Catherine | R21: 92 | S21: =IF(ISTEXT(I21),1,0) -> 0 | T21: =IF(ISTEXT(R21),1,0) -> 0
A22: C | B22: =IF(C22="","",VLOOKUP(C22,$W$3:$X$15,2,FALSE)) -> 17.9 | C22: HOUGUET Chantal | I22: 92 | J22: C | K22: =IF(L22="","",VLOOKUP(L22,$W$3:$X$15,2,FALSE)) -> 17.9 | L22: HOUGUET Chantal | R22: 95 | S22: =IF(ISTEXT(I22),1,0) -> 0 | T22: =IF(ISTEXT(R22),1,0) -> 0
A23: D | B23: =IF(C23="","",VLOOKUP(C23,$W$3:$X$15,2,FALSE)) -> 17.7 | C23: REGEON Catherine | I23: 98 | J23: D | K23: =IF(L23="","",VLOOKUP(L23,$W$3:$X$15,2,FALSE)) -> 20.1 | L23: POULLAIN Muriel | R23: 92 | S23: =IF(ISTEXT(I23),1,0) -> 0 | T23: =IF(ISTEXT(R23),1,0) -> 0
A25: =IF(SUM(R20:R23)>0,"Classement Final : ","Classement 1er jour : ") -> Classement Final : | D25: =IF(COUNT(I20:I23)<3,"",VLOOKUP(F18,'Cl.J1+Gen.'!$Z$11:$AV$36,23,FALSE)) -> 12 | E25: =IF(SUM(R20:R23)>0,"Total des 2 Tours : ","Total 1er Tour : ") -> Total des 2 Tours : | G25: =IF(OR(I25="DIS",R25="DIS"),"DIS",I25+R25) -> 544 | I25: =IF(S25>1,"DIS",IF(S25=1,SUM(I20:I23),IF(COUNT(I20:I23)<4,SUM(I20:I23),SUM(I20:I23)-MAX(I20:I23)))) -> 273 | R25: =IF(T25>1,"DIS",IF(T25=1,SUM(R20:R23),IF(COUNT(R20:R23)<4,SUM(R20:R23),SUM(R20:R23)-MAX(R20:R23)))) -> 271 | S25: =SUM(S20:S23) -> 0 | T25: =SUM(T20:T23) -> 0
C27: Equipières du club de : | F27: =Prépa!D15 -> CH. CHEVERNY
B28: Ind | C28: Joueuses de la 1ère Journée | I28: Tour 1 | K28: Ind | L28: Joueuses de la 2ème Journée | R28: Tour 2 | S28: FOR ABN DIS | T28: FOR ABN DIS
A29: A | B29: =IF(C29="","",VLOOKUP(C29,$Y$3:$Z$15,2,FALSE)) -> 13.5 | C29: COUASSE Isabelle | I29: 88 | J29: A | K29: =IF(L29="","",VLOOKUP(L29,$Y$3:$Z$15,2,FALSE)) -> 13.5 | L29: COUASSE Isabelle | R29: 85 | S29: =IF(ISTEXT(I29),1,0) -> 0 | T29: =IF(ISTEXT(R29),1,0) -> 0
A30: B | B30: =IF(C30="","",VLOOKUP(C30,$Y$3:$Z$15,2,FALSE)) -> 8.8 | C30: LORILLOU Carole | I30: 78 | J30: B | K30: =IF(L30="","",VLOOKUP(L30,$Y$3:$Z$15,2,FALSE)) -> 8.8 | L30: LORILLOU Carole | R30: 77 | S30: =IF(ISTEXT(I30),1,0) -> 0 | T30: =IF(ISTEXT(R30),1,0) -> 0
A31: C | B31: =IF(C31="","",VLOOKUP(C31,$Y$3:$Z$15,2,FALSE)) -> 11 | C31: MARROCCO Maryline | I31: 87 | J31: C | K31: =IF(L31="","",VLOOKUP(L31,$Y$3:$Z$15,2,FALSE)) -> 11 | L31: MARROCCO Maryline | R31: 90 | S31: =IF(ISTEXT(I31),1,0) -> 0 | T31: =IF(ISTEXT(R31),1,0) -> 0
A32: D | B32: =IF(C32="","",VLOOKUP(C32,$Y$3:$Z$15,2,FALSE)) -> 17.8 | C32: REVET Josiane | I32: 93 | J32: D | K32: =IF(L32="","",VLOOKUP(L32,$Y$3:$Z$15,2,FALSE)) -> 17.8 | L32: REVET Josiane | R32: 98 | S32: =IF(ISTEXT(I32),1,0) -> 0 | T32: =IF(ISTEXT(R32),1,0) -> 0
A34: =IF(SUM(R29:R32)>0,"Classement Final : ","Classement 1er jour : ") -> Classement Final : | D34: =IF(COUNT(I29:I32)<3,"",VLOOKUP(F27,'Cl.J1+Gen.'!$Z$11:$AV$36,23,FALSE)) -> 6 | E34: =IF(SUM(R29:R32)>0,"Total des 2 Tours : ","Total 1er Tour : ") -> Total des 2 Tours : | G34: =IF(OR(I34="DIS",R34="DIS"),"DIS",I34+R34) -> 505 | I34: =IF(S34>1,"DIS",IF(S34=1,SUM(I29:I32),IF(COUNT(I29:I32)<4,SUM(I29:I32),SUM(I29:I32)-MAX(I29:I32)))) -> 253 | R34: =IF(T34>1,"DIS",IF(T34=1,SUM(R29:R32),IF(COUNT(R29:R32)<4,SUM(R29:R32),SUM(R29:R32)-MAX(R29:R32)))) -> 252 | S34: =SUM(S29:S32) -> 0 | T34: =SUM(T29:T32) -> 0
C36: Equipières du club de : | F36: =Prépa!D17 -> CHARTRES FONTENAY
B37: Ind | C37: Joueuses de la 1ère Journée | I37: Tour 1 | K37: Ind | L37: Joueuses de la 2ème Journée | R37: Tour 2 | S37: FOR ABN DIS | T37: FOR ABN DIS
A38: A | B38: =IF(C38="","",VLOOKUP(C38,$AA$3:$AB$15,2,FALSE)) -> 14.5 | C38: TREMBLAY Fabienne | I38: 78 | J38: A | K38: =IF(L38="","",VLOOKUP(L38,$AA$3:$AB$15,2,FALSE)) -> 14.5 | L38: TREMBLAY Fabienne | R38: 91 | S38: =IF(ISTEXT(I38),1,0) -> 0 | T38: =IF(ISTEXT(R38),1,0) -> 0
A39: B | B39: =IF(C39="","",VLOOKUP(C39,$AA$3:$AB$15,2,FALSE)) -> 3.6 | C39: KACZMAREK Nathalie | I39: 78 | J39: B | K39: =IF(L39="","",VLOOKUP(L39,$AA$3:$AB$15,2,FALSE)) -> 3.6 | L39: KACZMAREK Nathalie | R39: 75 | S39: =IF(ISTEXT(I39),1,0) -> 0 | T39: =IF(ISTEXT(R39),1,0) -> 0
A40: C | B40: =IF(C40="","",VLOOKUP(C40,$AA$3:$AB$15,2,FALSE)) -> 14.6 | C40: SERINET Carole | I40: 80 | J40: C | K40: =IF(L40="","",VLOOKUP(L40,$AA$3:$AB$15,2,FALSE)) -> 14.6 | L40: SERINET Carole | R40: 83 | S40: =IF(ISTEXT(I40),1,0) -> 0 | T40: =IF(ISTEXT(R40),1,0) -> 0
A41: D | B41: =IF(C41="","",VLOOKUP(C41,$AA$3:$AB$15,2,FALSE)) -> 13.2 | C41: DORISE Celine | I41: 83 | J41: D | K41: =IF(L41="","",VLOOKUP(L41,$AA$3:$AB$15,2,FALSE)) -> 13.2 | L41: DORISE Celine | R41: 90 | S41: =IF(ISTEXT(I41),1,0) -> 0 | T41: =IF(ISTEXT(R41),1,0) -> 0
A43: =IF(SUM(R38:R41)>0,"Classement Final : ","Classement 1er jour : ") -> Classement Final : | D43: =IF(COUNT(I38:I41)<3,"",VLOOKUP(F36,'Cl.J1+Gen.'!$Z$11:$AV$36,23,FALSE)) -> 4 | E43: =IF(SUM(R38:R41)>0,"Total des 2 Tours : ","Total 1er Tour : ") -> Total des 2 Tours : | G43: =IF(OR(I43="DIS",R43="DIS"),"DIS",I43+R43) -> 484 | I43: =IF(S43>1,"DIS",IF(S43=1,SUM(I38:I41),IF(COUNT(I38:I41)<4,SUM(I38:I41),SUM(I38:I41)-MAX(I38:I41)))) -> 236 | R43: =IF(T43>1,"DIS",IF(T43=1,SUM(R38:R41),IF(COUNT(R38:R41)<4,SUM(R38:R41),SUM(R38:R41)-MAX(R38:R41)))) -> 248 | S43: =SUM(S38:S41) -> 0 | T43: =SUM(T38:T41) -> 0
C45: Equipières du club de : | F45: =Prépa!D19 -> CHOLET
B46: Ind | C46: Joueuses de la 1ère Journée | I46: Tour 1 | K46: Ind | L46: Joueuses de la 2ème Journée | R46: Tour 2 | S46: FOR ABN DIS | T46: FOR ABN DIS
A47: A | B47: =IF(C47="","",VLOOKUP(C47,$AC$3:$AD$15,2,FALSE)) -> 12 | C47: CESBRON Annie | I47: 89 | J47: A | K47: =IF(L47="","",VLOOKUP(L47,$AC$3:$AD$15,2,FALSE)) -> 12 | L47: CESBRON Annie | R47: 82 | S47: =IF(ISTEXT(I47),1,0) -> 0 | T47: =IF(ISTEXT(R47),1,0) -> 0
A48: B | B48: =IF(C48="","",VLOOKUP(C48,$AC$3:$AD$15,2,FALSE)) -> 12.7 | C48: DEMARET Evelyne | I48: 85 | J48: B | K48: =IF(L48="","",VLOOKUP(L48,$AC$3:$AD$15,2,FALSE)) -> 19 | L48: BERARD Véronique | R48: 99 | S48: =IF(ISTEXT(I48),1,0) -> 0 | T48: =IF(ISTEXT(R48),1,0) -> 0
A49: C | B49: =IF(C49="","",VLOOKUP(C49,$AC$3:$AD$15,2,FALSE)) -> 18 | C49: JULIENNE Virginie | I49: 88 | J49: C | K49: =IF(L49="","",VLOOKUP(L49,$AC$3:$AD$15,2,FALSE)) -> 18 | L49: JULIENNE Virginie | R49: 84 | S49: =IF(ISTEXT(I49),1,0) -> 0 | T49: =IF(ISTEXT(R49),1,0) -> 0
A50: D | B50: =IF(C50="","",VLOOKUP(C50,$AC$3:$AD$15,2,FALSE)) -> 19 | C50: BERARD Véronique | I50: 96 | J50: D | K50: =IF(L50="","",VLOOKUP(L50,$AC$3:$AD$15,2,FALSE)) -> 18.7 | L50: PETRELLA Anne | R50: 93 | S50: =IF(ISTEXT(I50),1,0) -> 0 | T50: =IF(ISTEXT(R50),1,0) -> 0
A52: =IF(SUM(R47:R50)>0,"Classement Final : ","Classement 1er jour : ") -> Classement Final : | D52: =IF(COUNT(I47:I50)<3,"",VLOOKUP(F45,'Cl.J1+Gen.'!$Z$11:$AV$36,23,FALSE)) -> 10 | E52: =IF(SUM(R47:R50)>0,"Total des 2 Tours : ","Total 1er Tour : ") -> Total des 2 Tours : | G52: =IF(OR(I52="DIS",R52="DIS"),"DIS",I52+R52) -> 521 | I52: =IF(S52>1,"DIS",IF(S52=1,SUM(I47:I50),IF(COUNT(I47:I50)<4,SUM(I47:I50),SUM(I47:I50)-MAX(I47:I50)))) -> 262 | R52: =IF(T52>1,"DIS",IF(T52=1,SUM(R47:R50),IF(COUNT(R47:R50)<4,SUM(R47:R50),SUM(R47:R50)-MAX(R47:R50)))) -> 259 | S52: =SUM(S47:S50) -> 0 | T52: =SUM(T47:T50) -> 0
C54: Equipières du club de : | F54: =Prépa!D21 -> GLORIETTE
B55: Ind | C55: Joueuses de la 1ère Journée | I55: Tour 1 | K55: Ind | L55: Joueuses de la 2ème Journée | R55: Tour 2 | S55: FOR ABN DIS | T55: FOR ABN DIS
A56: A | B56: =IF(C56="","",VLOOKUP(C56,$AE$3:$AF$15,2,FALSE)) -> 20.5 | C56: GEORGE Catherine | I56: 97 | J56: A | K56: =IF(L56="","",VLOOKUP(L56,$AE$3:$AF$15,2,FALSE)) -> 15.8 | L56: MILLET Isabelle | R56: 83 | S56: =IF(ISTEXT(I56),1,0) -> 0 | T56: =IF(ISTEXT(R56),1,0) -> 0
A57: B | B57: =IF(C57="","",VLOOKUP(C57,$AE$3:$AF$15,2,FALSE)) -> 15.8 | C57: MILLET Isabelle | I57: 82 | J57: B | K57: =IF(L57="","",VLOOKUP(L57,$AE$3:$AF$15,2,FALSE)) -> 23.1 | L57: CHAUSSONNIERE Catherine | R57: 89 | S57: =IF(ISTEXT(I57),1,0) -> 0 | T57: =IF(ISTEXT(R57),1,0) -> 0
A58: C | B58: =IF(C58="","",VLOOKUP(C58,$AE$3:$AF$15,2,FALSE)) -> 23.8 | C58: BARRON Nathalie | I58: 95 | J58: C | K58: =IF(L58="","",VLOOKUP(L58,$AE$3:$AF$15,2,FALSE)) -> 23.8 | L58: BARRON Nathalie | R58: 96 | S58: =IF(ISTEXT(I58),1,0) -> 0 | T58: =IF(ISTEXT(R58),1,0) -> 0
A59: D | B59: =IF(C59="","",VLOOKUP(C59,$AE$3:$AF$15,2,FALSE)) -> 23.1 | C59: CHAUSSONNIERE Catherine | I59: 103 | J59: D | K59: =IF(L59="","",VLOOKUP(L59,$AE$3:$AF$15,2,FALSE)) -> 20.5 | L59: GEORGE Catherine | R59: 92 | S59: =IF(ISTEXT(I59),1,0) -> 0 | T59: =IF(ISTEXT(R59),1,0) -> 0
A61: =IF(SUM(R56:R59)>0,"Classement Final : ","Classement 1er jour : ") -> Classement Final : | D61: =IF(COUNT(I56:I59)<3,"",VLOOKUP(F54,'Cl.J1+Gen.'!$Z$11:$AV$36,23,FALSE)) -> 11 | E61: =IF(SUM(R56:R59)>0,"Total des 2 Tours : ","Total 1er Tour : ") -> Total des 2 Tours : | G61: =IF(OR(I61="DIS",R61="DIS"),"DIS",I61+R61) -> 538 | I61: =IF(S61>1,"DIS",IF(S61=1,SUM(I56:I59),IF(COUNT(I56:I59)<4,SUM(I56:I59),SUM(I56:I59)-MAX(I56:I59)))) -> 274 | R61: =IF(T61>1,"DIS",IF(T61=1,SUM(R56:R59),IF(COUNT(R56:R59)<4,SUM(R56:R59),SUM(R56:R59)-MAX(R56:R59)))) -> 264 | S61: =SUM(S56:S59) -> 0 | T61: =SUM(T56:T59) -> 0
C63: Equipières du club de : | F63: =Prépa!D23 -> LAC AU DUC
B64: Ind | C64: Joueuses de la 1ère Journée | I64: Tour 1 | K64: Ind | L64: Joueuses de la 2ème Journée | R64: Tour 2 | S64: FOR ABN DIS | T64: FOR ABN DIS
A65: A | B65: =IF(C65="","",VLOOKUP(C65,$AG$3:$AH$15,2,FALSE)) -> 4.9 | C65: URVOIS Christelle | I65: 77 | J65: A | K65: =IF(L65="","",VLOOKUP(L65,$AG$3:$AH$15,2,FALSE)) -> 4.9 | L65: URVOIS Christelle | R65: 73 | S65: =IF(ISTEXT(I65),1,0) -> 0 | T65: =IF(ISTEXT(R65),1,0) -> 0
A66: B | B66: =IF(C66="","",VLOOKUP(C66,$AG$3:$AH$15,2,FALSE)) -> 12.5 | C66: RIGUIDEL Annick | I66: 96 | J66: B | K66: =IF(L66="","",VLOOKUP(L66,$AG$3:$AH$15,2,FALSE)) -> 13.9 | L66: LEGRAND Véronique | R66: 89 | S66: =IF(ISTEXT(I66),1,0) -> 0 | T66: =IF(ISTEXT(R66),1,0) -> 0
A67: C | B67: =IF(C67="","",VLOOKUP(C67,$AG$3:$AH$15,2,FALSE)) -> 10.3 | C67: ECHELARD Sylvie | I67: 93 | J67: C | K67: =IF(L67="","",VLOOKUP(L67,$AG$3:$AH$15,2,FALSE)) -> 10.3 | L67: ECHELARD Sylvie | R67: 89 | S67: =IF(ISTEXT(I67),1,0) -> 0 | T67: =IF(ISTEXT(R67),1,0) -> 0
A68: D | B68: =IF(C68="","",VLOOKUP(C68,$AG$3:$AH$15,2,FALSE)) -> 13.9 | C68: LEGRAND Véronique | I68: 90 | J68: D | K68: =IF(L68="","",VLOOKUP(L68,$AG$3:$AH$15,2,FALSE)) -> 12.5 | L68: RIGUIDEL Annick | R68: 97 | S68: =IF(ISTEXT(I68),1,0) -> 0 | T68: =IF(ISTEXT(R68),1,0) -> 0
A70: =IF(SUM(R65:R68)>0,"Classement Final : ","Classement 1er jour : ") -> Classement Final : | D70: =IF(COUNT(I65:I68)<3,"",VLOOKUP(F63,'Cl.J1+Gen.'!$Z$11:$AV$36,23,FALSE)) -> 8 | E70: =IF(SUM(R65:R68)>0,"Total des 2 Tours : ","Total 1er Tour : ") -> Total des 2 Tours : | G70: =IF(OR(I70="DIS",R70="DIS"),"DIS",I70+R70) -> 511 | I70: =IF(S70>1,"DIS",IF(S70=1,SUM(I65:I68),IF(COUNT(I65:I68)<4,SUM(I65:I68),SUM(I65:I68)-MAX(I65:I68)))) -> 260 | R70: =IF(T70>1,"DIS",IF(T70=1,SUM(R65:R68),IF(COUNT(R65:R68)<4,SUM(R65:R68),SUM(R65:R68)-MAX(R65:R68)))) -> 251 | S70: =SUM(S65:S68) -> 0 | T70: =SUM(T65:T68) -> 0
C72: Equipières du club de : | F72: =Prépa!D25 -> LAVAL
B73: Ind | C73: Joueuses de la 1ère Journée | I73: Tour 1 | K73: Ind | L73: Joueuses de la 2ème Journée | R73: Tour 2 | S73: FOR ABN DIS | T73: FOR ABN DIS
A74: A | B74: =IF(C74="","",VLOOKUP(C74,$AI$3:$AJ$15,2,FALSE)) -> 6.2 | C74: NAIRIERE Dominique | I74: 75 | J74: A | K74: =IF(L74="","",VLOOKUP(L74,$AI$3:$AJ$15,2,FALSE)) -> 6.2 | L74: NAIRIERE Dominique | R74: 81 | S74: =IF(ISTEXT(I74),1,0) -> 0 | T74: =IF(ISTEXT(R74),1,0) -> 0
A75: B | B75: =IF(C75="","",VLOOKUP(C75,$AI$3:$AJ$15,2,FALSE)) -> 14.8 | C75: CHAPPE Estelle | I75: 89 | J75: B | K75: =IF(L75="","",VLOOKUP(L75,$AI$3:$AJ$15,2,FALSE)) -> 14.8 | L75: CHAPPE Estelle | R75: 82 | S75: =IF(ISTEXT(I75),1,0) -> 0 | T75: =IF(ISTEXT(R75),1,0) -> 0
A76: C | B76: =IF(C76="","",VLOOKUP(C76,$AI$3:$AJ$15,2,FALSE)) -> 15.6 | C76: LE ROY Sylviane | I76: 94 | J76: C | K76: =IF(L76="","",VLOOKUP(L76,$AI$3:$AJ$15,2,FALSE)) -> 15.6 | L76: LE ROY Sylviane | R76: 96 | S76: =IF(ISTEXT(I76),1,0) -> 0 | T76: =IF(ISTEXT(R76),1,0) -> 0
A77: D | B77: =IF(C77="","",VLOOKUP(C77,$AI$3:$AJ$15,2,FALSE)) -> 17.2 | C77: BOUREL Catherine | I77: 93 | J77: D | K77: =IF(L77="","",VLOOKUP(L77,$AI$3:$AJ$15,2,FALSE)) -> 17.2 | L77: BOUREL Catherine | R77: 91 | S77: =IF(ISTEXT(I77),1,0) -> 0 | T77: =IF(ISTEXT(R77),1,0) -> 0
A79: =IF(SUM(R74:R77)>0,"Classement Final : ","Classement 1er jour : ") -> Classement Final : | D79: =IF(COUNT(I74:I77)<3,"",VLOOKUP(F72,'Cl.J1+Gen.'!$Z$11:$AV$36,23,FALSE)) -> 7 | E79: =IF(SUM(R74:R77)>0,"Total des 2 Tours : ","Total 1er Tour : ") -> Total des 2 Tours : | G79: =IF(OR(I79="DIS",R79="DIS"),"DIS",I79+R79) -> 511 | I79: =IF(S79>1,"DIS",IF(S79=1,SUM(I74:I77),IF(COUNT(I74:I77)<4,SUM(I74:I77),SUM(I74:I77)-MAX(I74:I77)))) -> 257 | R79: =IF(T79>1,"DIS",IF(T79=1,SUM(R74:R77),IF(COUNT(R74:R77)<4,SUM(R74:R77),SUM(R74:R77)-MAX(R74:R77)))) -> 254 | S79: =SUM(S74:S77) -> 0 | T79: =SUM(T74:T77) -> 0
C81: Equipières du club de : | F81: =Prépa!D27 -> NANTES ERDRE
B82: Ind | C82: Joueuses de la 1ère Journée | I82: Tour 1 | K82: Ind | L82: Joueuses de la 2ème Journée | R82: Tour 2 | S82: FOR ABN DIS | T82: FOR ABN DIS
A83: A | B83: =IF(C83="","",VLOOKUP(C83,$AK$3:$AL$15,2,FALSE)) -> 4.8 | C83: TERRIER Emmanuelle | I83: 76 | J83: A | K83: =IF(L83="","",VLOOKUP(L83,$AK$3:$AL$15,2,FALSE)) -> 4.8 | L83: TERRIER Emmanuelle | R83: 77 | S83: =IF(ISTEXT(I83),1,0) -> 0 | T83: =IF(ISTEXT(R83),1,0) -> 0
A84: B | B84: =IF(C84="","",VLOOKUP(C84,$AK$3:$AL$15,2,FALSE)) -> 5.7 | C84: MATHY Marie | I84: 85 | J84: B | K84: =IF(L84="","",VLOOKUP(L84,$AK$3:$AL$15,2,FALSE)) -> 5.7 | L84: MATHY Marie | R84: 78 | S84: =IF(ISTEXT(I84),1,0) -> 0 | T84: =IF(ISTEXT(R84),1,0) -> 0
A85: C | B85: =IF(C85="","",VLOOKUP(C85,$AK$3:$AL$15,2,FALSE)) -> 9.1 | C85: GOFFIN Valérie | I85: 84 | J85: C | K85: =IF(L85="","",VLOOKUP(L85,$AK$3:$AL$15,2,FALSE)) -> 9.1 | L85: GOFFIN Valérie | R85: 79 | S85: =IF(ISTEXT(I85),1,0) -> 0 | T85: =IF(ISTEXT(R85),1,0) -> 0
A86: D | B86: =IF(C86="","",VLOOKUP(C86,$AK$3:$AL$15,2,FALSE)) -> 11.1 | C86: TRICHET Eglantine | I86: 95 | J86: D | K86: =IF(L86="","",VLOOKUP(L86,$AK$3:$AL$15,2,FALSE)) -> 11.1 | L86: POINTEAU Sophie | R86: 83 | S86: =IF(ISTEXT(I86),1,0) -> 0 | T86: =IF(ISTEXT(R86),1,0) -> 0
A88: =IF(SUM(R83:R86)>0,"Classement Final : ","Classement 1er jour : ") -> Classement Final : | D88: =IF(COUNT(I83:I86)<3,"",VLOOKUP(F81,'Cl.J1+Gen.'!$Z$11:$AV$36,23,FALSE)) -> 3 | E88: =IF(SUM(R83:R86)>0,"Total des 2 Tours : ","Total 1er Tour : ") -> Total des 2 Tours : | G88: =IF(OR(I88="DIS",R88="DIS"),"DIS",I88+R88) -> 479 | I88: =IF(S88>1,"DIS",IF(S88=1,SUM(I83:I86),IF(COUNT(I83:I86)<4,SUM(I83:I86),SUM(I83:I86)-MAX(I83:I86)))) -> 245 | R88: =IF(T88>1,"DIS",IF(T88=1,SUM(R83:R86),IF(COUNT(R83:R86)<4,SUM(R83:R86),SUM(R83:R86)-MAX(R83:R86)))) -> 234 | S88: =SUM(S83:S86) -> 0 | T88: =SUM(T83:T86) -> 0
C90: Equipières du club de : | F90: =Prépa!D29 -> ORLEANS DONNERY
B91: Ind | C91: Joueuses de la 1ère Journée | I91: Tour 1 | K91: Ind | L91: Joueuses de la 2ème Journée | R91: Tour 2 | S91: FOR ABN DIS | T91: FOR ABN DIS
A92: A | B92: =IF(C92="","",VLOOKUP(C92,$AM$3:$AN$15,2,FALSE)) -> 12.8 | C92: BREUVART Christine | I92: 85 | J92: A | K92: =IF(L92="","",VLOOKUP(L92,$AM$3:$AN$15,2,FALSE)) -> 12.8 | L92: BREUVART Christine | R92: 84 | S92: =IF(ISTEXT(I92),1,0) -> 0 | T92: =IF(ISTEXT(R92),1,0) -> 0
A93: B | B93: =IF(C93="","",VLOOKUP(C93,$AM$3:$AN$15,2,FALSE)) -> 19.6 | C93: AUTHIER Nathalie | I93: 99 | J93: B | K93: =IF(L93="","",VLOOKUP(L93,$AM$3:$AN$15,2,FALSE)) -> 21.1 | L93: MAINGUET Odile | R93: 89 | S93: =IF(ISTEXT(I93),1,0) -> 0 | T93: =IF(ISTEXT(R93),1,0) -> 0
A94: C | B94: =IF(C94="","",VLOOKUP(C94,$AM$3:$AN$15,2,FALSE)) -> 12.2 | C94: FILLEUL Nathalie | I94: 92 | J94: C | K94: =IF(L94="","",VLOOKUP(L94,$AM$3:$AN$15,2,FALSE)) -> 12.2 | L94: FILLEUL Nathalie | R94: 78 | S94: =IF(ISTEXT(I94),1,0) -> 0 | T94: =IF(ISTEXT(R94),1,0) -> 0
A95: D | B95: =IF(C95="","",VLOOKUP(C95,$AM$3:$AN$15,2,FALSE)) -> 16.8 | C95: BIMBENET Pascale | I95: 90 | J95: D | K95: =IF(L95="","",VLOOKUP(L95,$AM$3:$AN$15,2,FALSE)) -> 16.8 | L95: BIMBENET Pascale | R95: 95 | S95: =IF(ISTEXT(I95),1,0) -> 0 | T95: =IF(ISTEXT(R95),1,0) -> 0
A97: =IF(SUM(R92:R95)>0,"Classement Final : ","Classement 1er jour : ") -> Classement Final : | D97: =IF(COUNT(I92:I95)<3,"",VLOOKUP(F90,'Cl.J1+Gen.'!$Z$11:$AV$36,23,FALSE)) -> 9 | E97: =IF(SUM(R92:R95)>0,"Total des 2 Tours : ","Total 1er Tour : ") -> Total des 2 Tours : | G97: =IF(OR(I97="DIS",R97="DIS"),"DIS",I97+R97) -> 518 | I97: =IF(S97>1,"DIS",IF(S97=1,SUM(I92:I95),IF(COUNT(I92:I95)<4,SUM(I92:I95),SUM(I92:I95)-MAX(I92:I95)))) -> 267 | R97: =IF(T97>1,"DIS",IF(T97=1,SUM(R92:R95),IF(COUNT(R92:R95)<4,SUM(R92:R95),SUM(R92:R95)-MAX(R92:R95)))) -> 251 | S97: =SUM(S92:S95) -> 0 | T97: =SUM(T92:T95) -> 0
C99: Equipières du club de : | F99: =Prépa!D31 -> PLENEUF VAL ANDRE
B100: Ind | C100: Joueuses de la 1ère Journée | I100: Tour 1 | K100: Ind | L100: Joueuses de la 2ème Journée | R100: Tour 2 | S100: FOR ABN DIS | T100: FOR ABN DIS
A101: A | B101: =IF(C101="","",VLOOKUP(C101,$AO$3:$AP$15,2,FALSE)) -> 17.9 | C101: GAVARD Samira | I101: 94 | J101: A | K101: =IF(L101="","",VLOOKUP(L101,$AO$3:$AP$15,2,FALSE)) -> 17.1 | L101: TROALEN Juliette | R101: 93 | S101: =IF(ISTEXT(I101),1,0) -> 0 | T101: =IF(ISTEXT(R101),1,0) -> 0
A102: B | B102: =IF(C102="","",VLOOKUP(C102,$AO$3:$AP$15,2,FALSE)) -> 15.7 | C102: FLOQUET Francoise | I102: 87 | J102: B | K102: =IF(L102="","",VLOOKUP(L102,$AO$3:$AP$15,2,FALSE)) -> 17.9 | L102: GAVARD Samira | R102: 95 | S102: =IF(ISTEXT(I102),1,0) -> 0 | T102: =IF(ISTEXT(R102),1,0) -> 0
A103: C | B103: =IF(C103="","",VLOOKUP(C103,$AO$3:$AP$15,2,FALSE)) -> 16.6 | C103: BASLE Janick | I103: 100 | J103: C | K103: =IF(L103="","",VLOOKUP(L103,$AO$3:$AP$15,2,FALSE)) -> 15.7 | L103: FLOQUET Francoise | R103: 84 | S103: =IF(ISTEXT(I103),1,0) -> 0 | T103: =IF(ISTEXT(R103),1,0) -> 0
A104: D | B104: =IF(C104="","",VLOOKUP(C104,$AO$3:$AP$15,2,FALSE)) -> 17.1 | C104: TROALEN Juliette | I104: 97 | J104: D | K104: =IF(L104="","",VLOOKUP(L104,$AO$3:$AP$15,2,FALSE)) -> 15.8 | L104: ROUXEL Marie-Laure | R104: 89 | S104: =IF(ISTEXT(I104),1,0) -> 0 | T104: =IF(ISTEXT(R104),1,0) -> 0
A106: =IF(SUM(R101:R104)>0,"Classement Final : ","Classement 1er jour : ") -> Classement Final : | D106: =IF(COUNT(I101:I104)<3,"",VLOOKUP(F99,'Cl.J1+Gen.'!$Z$11:$AV$36,23,FALSE)) -> 13 | E106: =IF(SUM(R101:R104)>0,"Total des 2 Tours : ","Total 1er Tour : ") -> Total des 2 Tours : | G106: =IF(OR(I106="DIS",R106="DIS"),"DIS",I106+R106) -> 544 | I106: =IF(S106>1,"DIS",IF(S106=1,SUM(I101:I104),IF(COUNT(I101:I104)<4,SUM(I101:I104),SUM(I101:I104)-MAX(I101:I104)))) -> 278 | R106: =IF(T106>1,"DIS",IF(T106=1,SUM(R101:R104),IF(COUNT(R101:R104)<4,SUM(R101:R104),SUM(R101:R104)-MAX(R101:R104)))) -> 266 | S106: =SUM(S101:S104) -> 0 | T106: =SUM(T101:T104) -> 0
C108: Equipières du club de : | F108: =Prépa!D33 -> SABLES D'OR | I108: =I115 -> 245 | K108: Ind | L108: Equipières du club de : | O108: =Prépa!L33 -> 0 | P108: TOTAL: | R108: =R115 -> 232
B109: Ind | C109: Joueuses de la 1ère Journée | I109: Tour 1 | K109: Ind | L109: Joueuses de la 2ème Journée | R109: Tour 2 | S109: FOR ABN DIS | T109: FOR ABN DIS
A110: A | B110: =IF(C110="","",VLOOKUP(C110,$AQ$3:$AR$15,2,FALSE)) -> 3.9 | C110: FLANDIN Virginie | I110: 75 | J110: A | K110: =IF(L110="","",VLOOKUP(L110,$AQ$3:$AR$15,2,FALSE)) -> 11.8 | L110: LEMERCIER Delphine | R110: 78 | S110: =IF(ISTEXT(I110),1,0) -> 0 | T110: =IF(ISTEXT(R110),1,0) -> 0
A111: B | B111: =IF(C111="","",VLOOKUP(C111,$AQ$3:$AR$15,2,FALSE)) -> 5.8 | C111: PELE Charlotte | I111: 82 | J111: B | K111: =IF(L111="","",VLOOKUP(L111,$AQ$3:$AR$15,2,FALSE)) -> 5.8 | L111: PELE Charlotte | R111: 79 | S111: =IF(ISTEXT(I111),1,0) -> 0 | T111: =IF(ISTEXT(R111),1,0) -> 0
A112: C | B112: =IF(C112="","",VLOOKUP(C112,$AQ$3:$AR$15,2,FALSE)) -> 11.8 | C112: LEMERCIER Delphine | I112: 88 | J112: C | K112: =IF(L112="","",VLOOKUP(L112,$AQ$3:$AR$15,2,FALSE)) -> 3.9 | L112: FLANDIN Virginie | R112: 75 | S112: =IF(ISTEXT(I112),1,0) -> 0 | T112: =IF(ISTEXT(R112),1,0) -> 0
A113: D | B113: =IF(C113="","",VLOOKUP(C113,$AQ$3:$AR$15,2,FALSE)) -> 15.3 | C113: COQUELET Chantal | I113: 90 | J113: D | K113: =IF(L113="","",VLOOKUP(L113,$AQ$3:$AR$15,2,FALSE)) -> 14 | L113: HUCHET Françoise | R113: 88 | S113: =IF(ISTEXT(I113),1,0) -> 0 | T113: =IF(ISTEXT(R113),1,0) -> 0
A115: =IF(SUM(R110:R113)>0,"Classement Final : ","Classement 1er jour : ") -> Classement Final : | D115: =IF(COUNT(I110:I113)<3,"",VLOOKUP(F108,'Cl.J1+Gen.'!$Z$11:$AV$36,23,FALSE)) -> 2 | E115: =IF(SUM(R110:R113)>0,"Total des 2 Tours : ","Total 1er Tour : ") -> Total des 2 Tours : | G115: =IF(OR(I115="DIS",R115="DIS"),"DIS",I115+R115) -> 477 | I115: =IF(S115>1,"DIS",IF(S115=1,SUM(I110:I113),IF(COUNT(I110:I113)<4,SUM(I110:I113),SUM(I110:I113)-MAX(I110:I113)))) -> 245 | R115: =IF(T115>1,"DIS",IF(T115=1,SUM(R110:R113),IF(COUNT(R110:R113)<4,SUM(R110:R113),SUM(R110:R113)-MAX(R110:R113)))) -> 232 | S115: =SUM(S110:S113) -> 0 | T115: =SUM(T110:T113) -> 0
C117: Equipières du club de : | F117: =Prépa!D35 -> SAINT CAST
B118: Ind | C118: Joueuses de la 1ère Journée | I118: Tour 1 | K118: Ind | L118: Joueuses de la 2ème Journée | R118: Tour 2 | S118: FOR ABN DIS | T118: FOR ABN DIS
A119: A | B119: =IF(C119="","",VLOOKUP(C119,$AS$3:$AT$15,2,FALSE)) -> 2.2 | C119: EMSENS Diane | I119: 75 | J119: A | K119: =IF(L119="","",VLOOKUP(L119,$AS$3:$AT$15,2,FALSE)) -> 2.2 | L119: EMSENS Diane | R119: 71 | S119: =IF(ISTEXT(I119),1,0) -> 0 | T119: =IF(ISTEXT(R119),1,0) -> 0
A120: B | B120: =IF(C120="","",VLOOKUP(C120,$AS$3:$AT$15,2,FALSE)) -> 4.2 | C120: DUPUY Sophie | I120: 74 | J120: B | K120: =IF(L120="","",VLOOKUP(L120,$AS$3:$AT$15,2,FALSE)) -> 4.2 | L120: DUPUY Sophie | R120: 69 | S120: =IF(ISTEXT(I120),1,0) -> 0 | T120: =IF(ISTEXT(R120),1,0) -> 0
A121: C | B121: =IF(C121="","",VLOOKUP(C121,$AS$3:$AT$15,2,FALSE)) -> 8.9 | C121: CHATELLIER Joelle | I121: 81 | J121: C | K121: =IF(L121="","",VLOOKUP(L121,$AS$3:$AT$15,2,FALSE)) -> 8.9 | L121: CHATELLIER Joelle | R121: 79 | S121: =IF(ISTEXT(I121),1,0) -> 0 | T121: =IF(ISTEXT(R121),1,0) -> 0
A122: D | B122: =IF(C122="","",VLOOKUP(C122,$AS$3:$AT$15,2,FALSE)) -> 1.4 | C122: ESCALONA Elodie | I122: 78 | J122: D | K122: =IF(L122="","",VLOOKUP(L122,$AS$3:$AT$15,2,FALSE)) -> 1.4 | L122: ESCALONA Elodie | R122: 72 | S122: =IF(ISTEXT(I122),1,0) -> 0 | T122: =IF(ISTEXT(R122),1,0) -> 0
A124: =IF(SUM(R119:R122)>0,"Classement Final : ","Classement 1er jour : ") -> Classement Final : | D124: =IF(COUNT(I119:I122)<3,"",VLOOKUP(F117,'Cl.J1+Gen.'!$Z$11:$AV$36,23,FALSE)) -> 1 | E124: =IF(SUM(R119:R122)>0,"Total des 2 Tours : ","Total 1er Tour : ") -> Total des 2 Tours : | G124: =IF(OR(I124="DIS",R124="DIS"),"DIS",I124+R124) -> 439 | I124: =IF(S124>1,"DIS",IF(S124=1,SUM(I119:I122),IF(COUNT(I119:I122)<4,SUM(I119:I122),SUM(I119:I122)-MAX(I119:I122)))) -> 227 | R124: =IF(T124>1,"DIS",IF(T124=1,SUM(R119:R122),IF(COUNT(R119:R122)<4,SUM(R119:R122),SUM(R119:R122)-MAX(R119:R122)))) -> 212 | S124: =SUM(S119:S122) -> 0 | T124: =SUM(T119:T122) -> 0
C126: Equipières du club de : | F126: =Prépa!D37 -> SAVENAY
B127: Ind | C127: Joueuses de la 1ère Journée | I127: Tour 1 | K127: Ind | L127: Joueuses de la 2ème Journée | R127: Tour 2 | S127: FOR ABN DIS | T127: FOR ABN DIS
A128: A | B128: =IF(C128="","",VLOOKUP(C128,$AU$3:$AV$15,2,FALSE)) -> 11.5 | C128: BURGESS Caroline | I128: 81 | J128: A | K128: =IF(L128="","",VLOOKUP(L128,$AU$3:$AV$15,2,FALSE)) -> 11.5 | L128: BURGESS Caroline | R128: 91 | S128: =IF(ISTEXT(I128),1,0) -> 0 | T128: =IF(ISTEXT(R128),1,0) -> 0
A129: B | B129: =IF(C129="","",VLOOKUP(C129,$AU$3:$AV$15,2,FALSE)) -> 7.9 | C129: RENOUS Evelyne | I129: 88 | J129: B | K129: =IF(L129="","",VLOOKUP(L129,$AU$3:$AV$15,2,FALSE)) -> 7.9 | L129: RENOUS Evelyne | R129: 78 | S129: =IF(ISTEXT(I129),1,0) -> 0 | T129: =IF(ISTEXT(R129),1,0) -> 0
A130: C | B130: =IF(C130="","",VLOOKUP(C130,$AU$3:$AV$15,2,FALSE)) -> 7.2 | C130: BRAIRE Magali | I130: 77 | J130: C | K130: =IF(L130="","",VLOOKUP(L130,$AU$3:$AV$15,2,FALSE)) -> 7.2 | L130: BRAIRE Magali | R130: 83 | S130: =IF(ISTEXT(I130),1,0) -> 0 | T130: =IF(ISTEXT(R130),1,0) -> 0
A131: D | B131: =IF(C131="","",VLOOKUP(C131,$AU$3:$AV$15,2,FALSE)) -> 11.8 | C131: HEULOT Anita | I131: 84 | J131: D | K131: =IF(L131="","",VLOOKUP(L131,$AU$3:$AV$15,2,FALSE)) -> 11.8 | L131: HEULOT Anita | R131: 90 | S131: =IF(ISTEXT(I131),1,0) -> 0 | T131: =IF(ISTEXT(R131),1,0) -> 0
A133: =IF(SUM(R128:R131)>0,"Classement Final : ","Classement 1er jour : ") -> Classement Final : | D133: =IF(COUNT(I128:I131)<3,"",VLOOKUP(F126,'Cl.J1+Gen.'!$Z$11:$AV$36,23,FALSE)) -> 5 | E133: =IF(SUM(R128:R131)>0,"Total des 2 Tours : ","Total 1er Tour : ") -> Total des 2 Tours : | G133: =IF(OR(I133="DIS",R133="DIS"),"DIS",I133+R133) -> 493 | I133: =IF(S133>1,"DIS",IF(S133=1,SUM(I128:I131),IF(COUNT(I128:I131)<4,SUM(I128:I131),SUM(I128:I131)-MAX(I128:I131)))) -> 242 | R133: =IF(T133>1,"DIS",IF(T133=1,SUM(R128:R131),IF(COUNT(R128:R131)<4,SUM(R128:R131),SUM(R128:R131)-MAX(R128:R131)))) -> 251 | S133: =SUM(S128:S131) -> 0 | T133: =SUM(T128:T131) -> 0
C135: Equipières du club de : | F135: =Prépa!D39 -> 0
B136: Ind | C136: Joueuses de la 1ère Journée | I136: Tour 1 | K136: Ind | L136: Joueuses de la 2ème Journée | R136: Tour 2 | S136: FOR ABN DIS | T136: FOR ABN DIS
A137: A | B137: =IF(C137="","",VLOOKUP(C137,$AW$3:$AX$15,2,FALSE)) ->  | J137: A | K137: =IF(L137="","",VLOOKUP(L137,$AW$3:$AX$15,2,FALSE)) ->  | S137: =IF(ISTEXT(I137),1,0) -> 0 | T137: =IF(ISTEXT(R137),1,0) -> 0
A138: B | B138: =IF(C138="","",VLOOKUP(C138,$AW$3:$AX$15,2,FALSE)) ->  | J138: B | K138: =IF(L138="","",VLOOKUP(L138,$AW$3:$AX$15,2,FALSE)) ->  | S138: =IF(ISTEXT(I138),1,0) -> 0 | T138: =IF(ISTEXT(R138),1,0) -> 0
A139: C | B139: =IF(C139="","",VLOOKUP(C139,$AW$3:$AX$15,2,FALSE)) ->  | J139: C | K139: =IF(L139="","",VLOOKUP(L139,$AW$3:$AX$15,2,FALSE)) ->  | S139: =IF(ISTEXT(I139),1,0) -> 0 | T139: =IF(ISTEXT(R139),1,0) -> 0
A140: D | B140: =IF(C140="","",VLOOKUP(C140,$AW$3:$AX$15,2,FALSE)) ->  | J140: D | K140: =IF(L140="","",VLOOKUP(L140,$AW$3:$AX$15,2,FALSE)) ->  | S140: =IF(ISTEXT(I140),1,0) -> 0 | T140: =IF(ISTEXT(R140),1,0) -> 0
A142: =IF(SUM(R137:R140)>0,"Classement Final : ","Classement 1er jour : ") -> Classement 1er jour : | D142: =IF(COUNT(I137:I140)<3,"",VLOOKUP(F135,'Cl.J1+Gen.'!$Z$11:$AV$36,23,FALSE)) ->  | E142: =IF(SUM(R137:R140)>0,"Total des 2 Tours : ","Total 1er Tour : ") -> Total 1er Tour : | G142: =IF(OR(I142="DIS",R142="DIS"),"DIS",I142+R142) -> 0 | I142: =IF(S142>1,"DIS",IF(S142=1,SUM(I137:I140),IF(COUNT(I137:I140)<4,SUM(I137:I140),SUM(I137:I140)-MAX(I137:I140)))) -> 0 | R142: =IF(T142>1,"DIS",IF(T142=1,SUM(R137:R140),IF(COUNT(R137:R140)<$R$2,SUM(R137:R140),SUM(R137:R140)-MAX(R137:R140)))) -> 0 | S142: =SUM(S137:S140) -> 0 | T142: =SUM(T137:T140) -> 0
C144: Equipières du club de : | F144: =Prépa!D41 -> 0
B145: Ind | C145: Joueuses de la 1ère Journée | I145: Tour 1 | K145: Ind | L145: Joueuses de la 2ème Journée | R145: Tour 2 | S145: FOR ABN DIS | T145: FOR ABN DIS
A146: A | B146: =IF(C146="","",VLOOKUP(C146,$AY$3:$AZ$15,2,FALSE)) ->  | J146: A | K146: =IF(L146="","",VLOOKUP(L146,$AY$3:$AZ$15,2,FALSE)) ->  | S146: =IF(ISTEXT(I146),1,0) -> 0 | T146: =IF(ISTEXT(R146),1,0) -> 0
A147: B | B147: =IF(C147="","",VLOOKUP(C147,$AY$3:$AZ$15,2,FALSE)) ->  | J147: B | K147: =IF(L147="","",VLOOKUP(L147,$AY$3:$AZ$15,2,FALSE)) ->  | S147: =IF(ISTEXT(I147),1,0) -> 0 | T147: =IF(ISTEXT(R147),1,0) -> 0
A148: C | B148: =IF(C148="","",VLOOKUP(C148,$AY$3:$AZ$15,2,FALSE)) ->  | J148: C | K148: =IF(L148="","",VLOOKUP(L148,$AY$3:$AZ$15,2,FALSE)) ->  | S148: =IF(ISTEXT(I148),1,0) -> 0 | T148: =IF(ISTEXT(R148),1,0) -> 0
A149: D | B149: =IF(C149="","",VLOOKUP(C149,$AY$3:$AZ$15,2,FALSE)) ->  | J149: D | K149: =IF(L149="","",VLOOKUP(L149,$AY$3:$AZ$15,2,FALSE)) ->  | S149: =IF(ISTEXT(I149),1,0) -> 0 | T149: =IF(ISTEXT(R149),1,0) -> 0
A151: =IF(SUM(R146:R149)>0,"Classement Final : ","Classement 1er jour : ") -> Classement 1er jour : | D151: =IF(COUNT(I146:I149)<3,"",VLOOKUP(F144,'Cl.J1+Gen.'!$Z$11:$AV$36,23,FALSE)) ->  | E151: =IF(SUM(R146:R149)>0,"Total des 2 Tours : ","Total 1er Tour : ") -> Total 1er Tour : | G151: =IF(OR(I151="DIS",R151="DIS"),"DIS",I151+R151) -> 0 | I151: =IF(S151>1,"DIS",IF(S151=1,SUM(I146:I149),IF(COUNT(I146:I149)<4,SUM(I146:I149),SUM(I146:I149)-MAX(I146:I149)))) -> 0 | R151: =IF(T151>1,"DIS",IF(T151=1,SUM(R146:R149),IF(COUNT(R146:R149)<$R$2,SUM(R146:R149),SUM(R146:R149)-MAX(R146:R149)))) -> 0 | S151: =SUM(S146:S149) -> 0 | T151: =SUM(T146:T149) -> 0
C153: Equipières du club de : | F153: =Prépa!D43 -> 0
B154: Ind | C154: Joueuses de la 1ère Journée | I154: Tour 1 | K154: Ind | L154: Joueuses de la 2ème Journée | R154: Tour 2 | S154: FOR ABN DIS | T154: FOR ABN DIS
A155: A | B155: =IF(C155="","",VLOOKUP(C155,$BA$3:$BB$15,2,FALSE)) ->  | J155: A | K155: =IF(L155="","",VLOOKUP(L155,$BA$3:$BB$15,2,FALSE)) ->  | S155: =IF(ISTEXT(I155),1,0) -> 0 | T155: =IF(ISTEXT(R155),1,0) -> 0
A156: B | B156: =IF(C156="","",VLOOKUP(C156,$BA$3:$BB$15,2,FALSE)) ->  | J156: B | K156: =IF(L156="","",VLOOKUP(L156,$BA$3:$BB$15,2,FALSE)) ->  | S156: =IF(ISTEXT(I156),1,0) -> 0 | T156: =IF(ISTEXT(R156),1,0) -> 0
A157: C | B157: =IF(C157="","",VLOOKUP(C157,$BA$3:$BB$15,2,FALSE)) ->  | J157: C | K157: =IF(L157="","",VLOOKUP(L157,$BA$3:$BB$15,2,FALSE)) ->  | S157: =IF(ISTEXT(I157),1,0) -> 0 | T157: =IF(ISTEXT(R157),1,0) -> 0
A158: D | B158: =IF(C158="","",VLOOKUP(C158,$BA$3:$BB$15,2,FALSE)) ->  | J158: D | K158: =IF(L158="","",VLOOKUP(L158,$BA$3:$BB$15,2,FALSE)) ->  | S158: =IF(ISTEXT(I158),1,0) -> 0 | T158: =IF(ISTEXT(R158),1,0) -> 0
A160: =IF(SUM(R155:R158)>0,"Classement Final : ","Classement 1er jour : ") -> Classement 1er jour : | D160: =IF(COUNT(I155:I158)<3,"",VLOOKUP(F153,'Cl.J1+Gen.'!$Z$11:$AV$36,23,FALSE)) ->  | E160: =IF(SUM(R155:R158)>0,"Total des 2 Tours : ","Total 1er Tour : ") -> Total 1er Tour : | G160: =IF(OR(I160="DIS",R160="DIS"),"DIS",I160+R160) -> 0 | I160: =IF(S160>1,"DIS",IF(S160=1,SUM(I155:I158),IF(COUNT(I155:I158)<4,SUM(I155:I158),SUM(I155:I158)-MAX(I155:I158)))) -> 0 | R160: =IF(T160>1,"DIS",IF(T160=1,SUM(R155:R158),IF(COUNT(R155:R158)<$R$2,SUM(R155:R158),SUM(R155:R158)-MAX(R155:R158)))) -> 0 | S160: =SUM(S155:S158) -> 0 | T160: =SUM(T155:T158) -> 0
C162: Equipières du club de : | F162: =Prépa!D45 -> 0
B163: Ind | C163: Joueuses de la 1ère Journée | I163: Tour 1 | K163: Ind | L163: Joueuses de la 2ème Journée | R163: Tour 2 | S163: FOR ABN DIS | T163: FOR ABN DIS
A164: A | B164: =IF(C164="","",VLOOKUP(C164,$BC$3:$BD$15,2,FALSE)) ->  | J164: A | K164: =IF(L164="","",VLOOKUP(L164,$BC$3:$BD$15,2,FALSE)) ->  | S164: =IF(ISTEXT(I164),1,0) -> 0 | T164: =IF(ISTEXT(R164),1,0) -> 0
A165: B | B165: =IF(C165="","",VLOOKUP(C165,$BC$3:$BD$15,2,FALSE)) ->  | J165: B | K165: =IF(L165="","",VLOOKUP(L165,$BC$3:$BD$15,2,FALSE)) ->  | S165: =IF(ISTEXT(I165),1,0) -> 0 | T165: =IF(ISTEXT(R165),1,0) -> 0
A166: C | B166: =IF(C166="","",VLOOKUP(C166,$BC$3:$BD$15,2,FALSE)) ->  | J166: C | K166: =IF(L166="","",VLOOKUP(L166,$BC$3:$BD$15,2,FALSE)) ->  | S166: =IF(ISTEXT(I166),1,0) -> 0 | T166: =IF(ISTEXT(R166),1,0) -> 0
A167: D | B167: =IF(C167="","",VLOOKUP(C167,$BC$3:$BD$15,2,FALSE)) ->  | J167: D | K167: =IF(L167="","",VLOOKUP(L167,$BC$3:$BD$15,2,FALSE)) ->  | S167: =IF(ISTEXT(I167),1,0) -> 0 | T167: =IF(ISTEXT(R167),1,0) -> 0
A169: =IF(SUM(R164:R167)>0,"Classement Final : ","Classement 1er jour : ") -> Classement 1er jour : | D169: =IF(COUNT(I164:I167)<3,"",VLOOKUP(F162,'Cl.J1+Gen.'!$Z$11:$AV$36,23,FALSE)) ->  | E169: =IF(SUM(R164:R167)>0,"Total des 2 Tours : ","Total 1er Tour : ") -> Total 1er Tour : | G169: =IF(OR(I169="DIS",R169="DIS"),"DIS",I169+R169) -> 0 | I169: =IF(S169>1,"DIS",IF(S169=1,SUM(I164:I167),IF(COUNT(I164:I167)<4,SUM(I164:I167),SUM(I164:I167)-MAX(I164:I167)))) -> 0 | R169: =IF(T169>1,"DIS",IF(T169=1,SUM(R164:R167),IF(COUNT(R164:R167)<$R$2,SUM(R164:R167),SUM(R164:R167)-MAX(R164:R167)))) -> 0 | S169: =SUM(S164:S167) -> 0 | T169: =SUM(T164:T167) -> 0
C171: Equipières du club de : | F171: =Prépa!D47 -> 0
B172: Ind | C172: Joueuses de la 1ère Journée | I172: Tour 1 | K172: Ind | L172: Joueuses de la 2ème Journée | R172: Tour 2 | S172: FOR ABN DIS | T172: FOR ABN DIS
A173: A | B173: =IF(C173="","",VLOOKUP(C173,$BE$3:$BF$15,2,FALSE)) ->  | J173: A | K173: =IF(L173="","",VLOOKUP(L173,$BE$3:$BF$15,2,FALSE)) ->  | S173: =IF(ISTEXT(I173),1,0) -> 0 | T173: =IF(ISTEXT(R173),1,0) -> 0
A174: B | B174: =IF(C174="","",VLOOKUP(C174,$BE$3:$BF$15,2,FALSE)) ->  | J174: B | K174: =IF(L174="","",VLOOKUP(L174,$BE$3:$BF$15,2,FALSE)) ->  | S174: =IF(ISTEXT(I174),1,0) -> 0 | T174: =IF(ISTEXT(R174),1,0) -> 0
A175: C | B175: =IF(C175="","",VLOOKUP(C175,$BE$3:$BF$15,2,FALSE)) ->  | J175: C | K175: =IF(L175="","",VLOOKUP(L175,$BE$3:$BF$15,2,FALSE)) ->  | S175: =IF(ISTEXT(I175),1,0) -> 0 | T175: =IF(ISTEXT(R175),1,0) -> 0
A176: D | B176: =IF(C176="","",VLOOKUP(C176,$BE$3:$BF$15,2,FALSE)) ->  | J176: D | K176: =IF(L176="","",VLOOKUP(L176,$BE$3:$BF$15,2,FALSE)) ->  | S176: =IF(ISTEXT(I176),1,0) -> 0 | T176: =IF(ISTEXT(R176),1,0) -> 0
A178: =IF(SUM(R173:R176)>0,"Classement Final : ","Classement 1er jour : ") -> Classement 1er jour : | D178: =IF(COUNT(I173:I176)<3,"",VLOOKUP(F171,'Cl.J1+Gen.'!$Z$11:$AV$36,23,FALSE)) ->  | E178: =IF(SUM(R173:R176)>0,"Total des 2 Tours : ","Total 1er Tour : ") -> Total 1er Tour : | G178: =IF(OR(I178="DIS",R178="DIS"),"DIS",I178+R178) -> 0 | I178: =IF(S178>1,"DIS",IF(S178=1,SUM(I173:I176),IF(COUNT(I173:I176)<4,SUM(I173:I176),SUM(I173:I176)-MAX(I173:I176)))) -> 0 | R178: =IF(T178>1,"DIS",IF(T178=1,SUM(R173:R176),IF(COUNT(R173:R176)<$R$2,SUM(R173:R176),SUM(R173:R176)-MAX(R173:R176)))) -> 0 | S178: =SUM(S173:S176) -> 0 | T178: =SUM(T173:T176) -> 0
C180: Equipières du club de : | F180: =Prépa!D49 -> 0
B181: Ind | C181: Joueuses de la 1ère Journée | I181: Tour 1 | K181: Ind | L181: Joueuses de la 2ème Journée | R181: Tour 2 | S181: FOR ABN DIS | T181: FOR ABN DIS
A182: A | B182: =IF(C182="","",VLOOKUP(C182,$BG$3:$BH$15,2,FALSE)) ->  | J182: A | K182: =IF(L182="","",VLOOKUP(L182,$BG$3:$BH$15,2,FALSE)) ->  | S182: =IF(ISTEXT(I182),1,0) -> 0 | T182: =IF(ISTEXT(R182),1,0) -> 0
A183: B | B183: =IF(C183="","",VLOOKUP(C183,$BG$3:$BH$15,2,FALSE)) ->  | J183: B | K183: =IF(L183="","",VLOOKUP(L183,$BG$3:$BH$15,2,FALSE)) ->  | S183: =IF(ISTEXT(I183),1,0) -> 0 | T183: =IF(ISTEXT(R183),1,0) -> 0
A184: C | B184: =IF(C184="","",VLOOKUP(C184,$BG$3:$BH$15,2,FALSE)) ->  | J184: C | K184: =IF(L184="","",VLOOKUP(L184,$BG$3:$BH$15,2,FALSE)) ->  | S184: =IF(ISTEXT(I184),1,0) -> 0 | T184: =IF(ISTEXT(R184),1,0) -> 0
A185: D | B185: =IF(C185="","",VLOOKUP(C185,$BG$3:$BH$15,2,FALSE)) ->  | J185: D | K185: =IF(L185="","",VLOOKUP(L185,$BG$3:$BH$15,2,FALSE)) ->  | S185: =IF(ISTEXT(I185),1,0) -> 0 | T185: =IF(ISTEXT(R185),1,0) -> 0
A187: =IF(SUM(R182:R185)>0,"Classement Final : ","Classement 1er jour : ") -> Classement 1er jour : | D187: =IF(COUNT(I182:I185)<3,"",VLOOKUP(F180,'Cl.J1+Gen.'!$Z$11:$AV$36,23,FALSE)) ->  | E187: =IF(SUM(R182:R185)>0,"Total des 2 Tours : ","Total 1er Tour : ") -> Total 1er Tour : | G187: =IF(OR(I187="DIS",R187="DIS"),"DIS",I187+R187) -> 0 | I187: =IF(S187>1,"DIS",IF(S187=1,SUM(I182:I185),IF(COUNT(I182:I185)<4,SUM(I182:I185),SUM(I182:I185)-MAX(I182:I185)))) -> 0 | R187: =IF(T187>1,"DIS",IF(T187=1,SUM(R182:R185),IF(COUNT(R182:R185)<$R$2,SUM(R182:R185),SUM(R182:R185)-MAX(R182:R185)))) -> 0 | S187: =SUM(S182:S185) -> 0 | T187: =SUM(T182:T185) -> 0
C189: Equipières du club de : | F189: =Prépa!D51 -> 0
B190: Ind | C190: Joueuses de la 1ère Journée | I190: Tour 1 | K190: Ind | L190: Joueuses de la 2ème Journée | R190: Tour 2 | S190: FOR ABN DIS | T190: FOR ABN DIS
A191: A | B191: =IF(C191="","",VLOOKUP(C191,$BI$3:$BJ$15,2,FALSE)) ->  | J191: A | K191: =IF(L191="","",VLOOKUP(L191,$BI$3:$BJ$15,2,FALSE)) ->  | S191: =IF(ISTEXT(I191),1,0) -> 0 | T191: =IF(ISTEXT(R191),1,0) -> 0
A192: B | B192: =IF(C192="","",VLOOKUP(C192,$BI$3:$BJ$15,2,FALSE)) ->  | J192: B | K192: =IF(L192="","",VLOOKUP(L192,$BI$3:$BJ$15,2,FALSE)) ->  | S192: =IF(ISTEXT(I192),1,0) -> 0 | T192: =IF(ISTEXT(R192),1,0) -> 0
A193: C | B193: =IF(C193="","",VLOOKUP(C193,$BI$3:$BJ$15,2,FALSE)) ->  | J193: C | K193: =IF(L193="","",VLOOKUP(L193,$BI$3:$BJ$15,2,FALSE)) ->  | S193: =IF(ISTEXT(I193),1,0) -> 0 | T193: =IF(ISTEXT(R193),1,0) -> 0
A194: D | B194: =IF(C194="","",VLOOKUP(C194,$BI$3:$BJ$15,2,FALSE)) ->  | J194: D | K194: =IF(L194="","",VLOOKUP(L194,$BI$3:$BJ$15,2,FALSE)) ->  | S194: =IF(ISTEXT(I194),1,0) -> 0 | T194: =IF(ISTEXT(R194),1,0) -> 0
A196: =IF(SUM(R191:R194)>0,"Classement Final : ","Classement 1er jour : ") -> Classement 1er jour : | D196: =IF(COUNT(I191:I194)<3,"",VLOOKUP(F189,'Cl.J1+Gen.'!$Z$11:$AV$36,23,FALSE)) ->  | E196: =IF(SUM(R191:R194)>0,"Total des 2 Tours : ","Total 1er Tour : ") -> Total 1er Tour : | G196: =IF(OR(I196="DIS",R196="DIS"),"DIS",I196+R196) -> 0 | I196: =IF(S196>1,"DIS",IF(S196=1,SUM(I191:I194),IF(COUNT(I191:I194)<4,SUM(I191:I194),SUM(I191:I194)-MAX(I191:I194)))) -> 0 | R196: =IF(T196>1,"DIS",IF(T196=1,SUM(R191:R194),IF(COUNT(R191:R194)<$R$2,SUM(R191:R194),SUM(R191:R194)-MAX(R191:R194)))) -> 0 | S196: =SUM(S191:S194) -> 0 | T196: =SUM(T191:T194) -> 0
C198: Equipières du club de : | F198: =Prépa!D53 -> 0 | I198: =I205 -> 0 | K198: Ind | L198: Equipières du club de : | O198: =Prépa!L53 -> 0 | P198: TOTAL: | R198: =R205 -> 0
B199: Ind | C199: Joueuses de la 1ère Journée | I199: Tour 1 | K199: Ind | L199: Joueuses de la 2ème Journée | R199: Tour 2 | S199: FOR ABN DIS | T199: FOR ABN DIS
A200: A | B200: =IF(C200="","",VLOOKUP(C200,$BK$3:$BL$15,2,FALSE)) ->  | J200: A | K200: =IF(L200="","",VLOOKUP(L200,$BK$3:$BL$15,2,FALSE)) ->  | S200: =IF(ISTEXT(I200),1,0) -> 0 | T200: =IF(ISTEXT(R200),1,0) -> 0
A201: B | B201: =IF(C201="","",VLOOKUP(C201,$BK$3:$BL$15,2,FALSE)) ->  | J201: B | K201: =IF(L201="","",VLOOKUP(L201,$BK$3:$BL$15,2,FALSE)) ->  | S201: =IF(ISTEXT(I201),1,0) -> 0 | T201: =IF(ISTEXT(R201),1,0) -> 0
A202: C | B202: =IF(C202="","",VLOOKUP(C202,$BK$3:$BL$15,2,FALSE)) ->  | J202: C | K202: =IF(L202="","",VLOOKUP(L202,$BK$3:$BL$15,2,FALSE)) ->  | S202: =IF(ISTEXT(I202),1,0) -> 0 | T202: =IF(ISTEXT(R202),1,0) -> 0
A203: D | B203: =IF(C203="","",VLOOKUP(C203,$BK$3:$BL$15,2,FALSE)) ->  | J203: D | K203: =IF(L203="","",VLOOKUP(L203,$BK$3:$BL$15,2,FALSE)) ->  | S203: =IF(ISTEXT(I203),1,0) -> 0 | T203: =IF(ISTEXT(R203),1,0) -> 0
A205: =IF(SUM(R200:R203)>0,"Classement Final : ","Classement 1er jour : ") -> Classement 1er jour : | D205: =IF(COUNT(I200:I203)<3,"",VLOOKUP(F198,'Cl.J1+Gen.'!$Z$11:$AV$36,23,FALSE)) ->  | E205: =IF(SUM(R200:R203)>0,"Total des 2 Tours : ","Total 1er Tour : ") -> Total 1er Tour : | G205: =IF(OR(I205="DIS",R205="DIS"),"DIS",I205+R205) -> 0 | I205: =IF(S205>1,"DIS",IF(S205=1,SUM(I200:I203),IF(COUNT(I200:I203)<4,SUM(I200:I203),SUM(I200:I203)-MAX(I200:I203)))) -> 0 | R205: =IF(T205>1,"DIS",IF(T205=1,SUM(R200:R203),IF(COUNT(R200:R203)<$R$2,SUM(R200:R203),SUM(R200:R203)-MAX(R200:R203)))) -> 0 | S205: =SUM(S200:S203) -> 0 | T205: =SUM(T200:T203) -> 0
C207: Equipières du club de : | F207: =Prépa!D55 -> 0
B208: Ind | C208: Joueuses de la 1ère Journée | I208: Tour 1 | K208: Ind | L208: Joueuses de la 2ème Journée | R208: Tour 2 | S208: FOR ABN DIS | T208: FOR ABN DIS
A209: A | B209: =IF(C209="","",VLOOKUP(C209,$BM$3:$BN$15,2,FALSE)) ->  | J209: A | K209: =IF(L209="","",VLOOKUP(L209,$BM$3:$BN$15,2,FALSE)) ->  | S209: =IF(ISTEXT(I209),1,0) -> 0 | T209: =IF(ISTEXT(R209),1,0) -> 0
A210: B | B210: =IF(C210="","",VLOOKUP(C210,$BM$3:$BN$15,2,FALSE)) ->  | J210: B | K210: =IF(L210="","",VLOOKUP(L210,$BM$3:$BN$15,2,FALSE)) ->  | S210: =IF(ISTEXT(I210),1,0) -> 0 | T210: =IF(ISTEXT(R210),1,0) -> 0
A211: C | B211: =IF(C211="","",VLOOKUP(C211,$BM$3:$BN$15,2,FALSE)) ->  | J211: C | K211: =IF(L211="","",VLOOKUP(L211,$BM$3:$BN$15,2,FALSE)) ->  | S211: =IF(ISTEXT(I211),1,0) -> 0 | T211: =IF(ISTEXT(R211),1,0) -> 0
A212: D | B212: =IF(C212="","",VLOOKUP(C212,$BM$3:$BN$15,2,FALSE)) ->  | J212: D | K212: =IF(L212="","",VLOOKUP(L212,$BM$3:$BN$15,2,FALSE)) ->  | S212: =IF(ISTEXT(I212),1,0) -> 0 | T212: =IF(ISTEXT(R212),1,0) -> 0
A214: =IF(SUM(R209:R212)>0,"Classement Final : ","Classement 1er jour : ") -> Classement 1er jour : | D214: =IF(COUNT(I209:I212)<3,"",VLOOKUP(F207,'Cl.J1+Gen.'!$Z$11:$AV$36,23,FALSE)) ->  | E214: =IF(SUM(R209:R212)>0,"Total des 2 Tours : ","Total 1er Tour : ") -> Total 1er Tour : | G214: =IF(OR(I214="DIS",R214="DIS"),"DIS",I214+R214) -> 0 | I214: =IF(S214>1,"DIS",IF(S214=1,SUM(I209:I212),IF(COUNT(I209:I212)<4,SUM(I209:I212),SUM(I209:I212)-MAX(I209:I212)))) -> 0 | R214: =IF(T214>1,"DIS",IF(T214=1,SUM(R209:R212),IF(COUNT(R209:R212)<$R$2,SUM(R209:R212),SUM(R209:R212)-MAX(R209:R212)))) -> 0 | S214: =SUM(S209:S212) -> 0 | T214: =SUM(T209:T212) -> 0
C216: Equipières du club de : | F216: =Prépa!D57 -> 0
B217: Ind | C217: Joueuses de la 1ère Journée | I217: Tour 1 | K217: Ind | L217: Joueuses de la 2ème Journée | R217: Tour 2 | S217: FOR ABN DIS | T217: FOR ABN DIS
A218: A | B218: =IF(C218="","",VLOOKUP(C218,$BO$3:$BP$15,2,FALSE)) ->  | J218: A | K218: =IF(L218="","",VLOOKUP(L218,$BO$3:$BP$15,2,FALSE)) ->  | S218: =IF(ISTEXT(I218),1,0) -> 0 | T218: =IF(ISTEXT(R218),1,0) -> 0
A219: B | B219: =IF(C219="","",VLOOKUP(C219,$BO$3:$BP$15,2,FALSE)) ->  | J219: B | K219: =IF(L219="","",VLOOKUP(L219,$BO$3:$BP$15,2,FALSE)) ->  | S219: =IF(ISTEXT(I219),1,0) -> 0 | T219: =IF(ISTEXT(R219),1,0) -> 0
A220: C | B220: =IF(C220="","",VLOOKUP(C220,$BO$3:$BP$15,2,FALSE)) ->  | J220: C | K220: =IF(L220="","",VLOOKUP(L220,$BO$3:$BP$15,2,FALSE)) ->  | S220: =IF(ISTEXT(I220),1,0) -> 0 | T220: =IF(ISTEXT(R220),1,0) -> 0
A221: D | B221: =IF(C221="","",VLOOKUP(C221,$BO$3:$BP$15,2,FALSE)) ->  | J221: D | K221: =IF(L221="","",VLOOKUP(L221,$BO$3:$BP$15,2,FALSE)) ->  | S221: =IF(ISTEXT(I221),1,0) -> 0 | T221: =IF(ISTEXT(R221),1,0) -> 0
A223: =IF(SUM(R218:R221)>0,"Classement Final : ","Classement 1er jour : ") -> Classement 1er jour : | D223: =IF(COUNT(I218:I221)<3,"",VLOOKUP(F216,'Cl.J1+Gen.'!$Z$11:$AV$36,23,FALSE)) ->  | E223: =IF(SUM(R218:R221)>0,"Total des 2 Tours : ","Total 1er Tour : ") -> Total 1er Tour : | G223: =IF(OR(I223="DIS",R223="DIS"),"DIS",I223+R223) -> 0 | I223: =IF(S223>1,"DIS",IF(S223=1,SUM(I218:I221),IF(COUNT(I218:I221)<4,SUM(I218:I221),SUM(I218:I221)-MAX(I218:I221)))) -> 0 | R223: =IF(T223>1,"DIS",IF(T223=1,SUM(R218:R221),IF(COUNT(R218:R221)<$R$2,SUM(R218:R221),SUM(R218:R221)-MAX(R218:R221)))) -> 0 | S223: =SUM(S218:S221) -> 0 | T223: =SUM(T218:T221) -> 0
C225: Equipières du club de : | F225: =Prépa!D59 -> 0
B226: Ind | C226: Joueuses de la 1ère Journée | I226: Tour 1 | K226: Ind | L226: Joueuses de la 2ème Journée | R226: Tour 2 | S226: FOR ABN DIS | T226: FOR ABN DIS
A227: A | B227: =IF(C227="","",VLOOKUP(C227,$BQ$3:$BR$15,2,FALSE)) ->  | J227: A | K227: =IF(L227="","",VLOOKUP(L227,$BQ$3:$BR$15,2,FALSE)) ->  | S227: =IF(ISTEXT(I227),1,0) -> 0 | T227: =IF(ISTEXT(R227),1,0) -> 0
A228: B | B228: =IF(C228="","",VLOOKUP(C228,$BQ$3:$BR$15,2,FALSE)) ->  | J228: B | K228: =IF(L228="","",VLOOKUP(L228,$BQ$3:$BR$15,2,FALSE)) ->  | S228: =IF(ISTEXT(I228),1,0) -> 0 | T228: =IF(ISTEXT(R228),1,0) -> 0
A229: C | B229: =IF(C229="","",VLOOKUP(C229,$BQ$3:$BR$15,2,FALSE)) ->  | J229: C | K229: =IF(L229="","",VLOOKUP(L229,$BQ$3:$BR$15,2,FALSE)) ->  | S229: =IF(ISTEXT(I229),1,0) -> 0 | T229: =IF(ISTEXT(R229),1,0) -> 0
A230: D | B230: =IF(C230="","",VLOOKUP(C230,$BQ$3:$BR$15,2,FALSE)) ->  | J230: D | K230: =IF(L230="","",VLOOKUP(L230,$BQ$3:$BR$15,2,FALSE)) ->  | S230: =IF(ISTEXT(I230),1,0) -> 0 | T230: =IF(ISTEXT(R230),1,0) -> 0
A232: =IF(SUM(R227:R230)>0,"Classement Final : ","Classement 1er jour : ") -> Classement 1er jour : | D232: =IF(COUNT(I227:I230)<3,"",VLOOKUP(F225,'Cl.J1+Gen.'!$Z$11:$AV$36,23,FALSE)) ->  | E232: =IF(SUM(R227:R230)>0,"Total des 2 Tours : ","Total 1er Tour : ") -> Total 1er Tour : | G232: =IF(OR(I232="DIS",R232="DIS"),"DIS",I232+R232) -> 0 | I232: =IF(S232>1,"DIS",IF(S232=1,SUM(I227:I230),IF(COUNT(I227:I230)<4,SUM(I227:I230),SUM(I227:I230)-MAX(I227:I230)))) -> 0 | R232: =IF(T232>1,"DIS",IF(T232=1,SUM(R227:R230),IF(COUNT(R227:R230)<$R$2,SUM(R227:R230),SUM(R227:R230)-MAX(R227:R230)))) -> 0 | S232: =SUM(S227:S230) -> 0 | T232: =SUM(T227:T230) -> 0
C234: Equipières du club de : | F234: =Prépa!D61 -> 0
B235: Ind | C235: Joueuses de la 1ère Journée | I235: Tour 1 | K235: Ind | L235: Joueuses de la 2ème Journée | R235: Tour 2 | S235: FOR ABN DIS | T235: FOR ABN DIS
A236: A | B236: =IF(C236="","",VLOOKUP(C236,$BS$3:$BT$15,2,FALSE)) ->  | J236: A | K236: =IF(L236="","",VLOOKUP(L236,$BS$3:$BT$15,2,FALSE)) ->  | S236: =IF(ISTEXT(I236),1,0) -> 0 | T236: =IF(ISTEXT(R236),1,0) -> 0
A237: B | B237: =IF(C237="","",VLOOKUP(C237,$BS$3:$BT$15,2,FALSE)) ->  | J237: B | K237: =IF(L237="","",VLOOKUP(L237,$BS$3:$BT$15,2,FALSE)) ->  | S237: =IF(ISTEXT(I237),1,0) -> 0 | T237: =IF(ISTEXT(R237),1,0) -> 0
A238: C | B238: =IF(C238="","",VLOOKUP(C238,$BS$3:$BT$15,2,FALSE)) ->  | J238: C | K238: =IF(L238="","",VLOOKUP(L238,$BS$3:$BT$15,2,FALSE)) ->  | S238: =IF(ISTEXT(I238),1,0) -> 0 | T238: =IF(ISTEXT(R238),1,0) -> 0
A239: D | B239: =IF(C239="","",VLOOKUP(C239,$BS$3:$BT$15,2,FALSE)) ->  | J239: D | K239: =IF(L239="","",VLOOKUP(L239,$BS$3:$BT$15,2,FALSE)) ->  | S239: =IF(ISTEXT(I239),1,0) -> 0 | T239: =IF(ISTEXT(R239),1,0) -> 0
A241: =IF(SUM(R236:R239)>0,"Classement Final : ","Classement 1er jour : ") -> Classement 1er jour : | D241: =IF(COUNT(I236:I239)<3,"",VLOOKUP(F234,'Cl.J1+Gen.'!$Z$11:$AV$36,23,FALSE)) ->  | E241: =IF(SUM(R236:R239)>0,"Total des 2 Tours : ","Total 1er Tour : ") -> Total 1er Tour : | G241: =IF(OR(I241="DIS",R241="DIS"),"DIS",I241+R241) -> 0 | I241: =IF(S241>1,"DIS",IF(S241=1,SUM(I236:I239),IF(COUNT(I236:I239)<4,SUM(I236:I239),SUM(I236:I239)-MAX(I236:I239)))) -> 0 | R241: =IF(T241>1,"DIS",IF(T241=1,SUM(R236:R239),IF(COUNT(R236:R239)<$R$2,SUM(R236:R239),SUM(R236:R239)-MAX(R236:R239)))) -> 0 | S241: =SUM(S236:S239) -> 0 | T241: =SUM(T236:T239) -> 0

Sheet Cl.J1+Gen.
A1: CETTE FEUILLE SE REMPLIT AUTOMATIQUEMENT AVEC LES INFORMATIONS DES FEUILLES "Tour1" ET "Tour2".VOUS POUVEZ, SI NECESSAIRE, FAIRE APPARAITRE OU MASQUER LES DEPARTAGES EN CLIQUANT SUR LES BOUTONS CONCERNES | Z1: =Prépa!E8 -> 3
C2: =Prépa!D2 -> INTERCLUBS PAR EQUIPES PROMOTION MID DAMES
C3: =Prépa!D4 -> Inter régions OUEST
C5: =Prépa!D6 -> 19 et 20 juin 2021 au Golf de Saint Cast
E7: TABLEAU DE RESULTATS
O8: =Donnees!$R$2 -> e
A9: Rang | B9: CLUB | D9: JOUEUSES 1er JOUR | H9: Score Jour 1 | I9: DIS | J9: JOUEUSES 2ème JOUR | N9: Score Jour 2 | O9: DIS | P9: TOTAL | Q9: 1er Dép. | R9: 2ème Dép. | S9: 3ème Dép. | X9: Rang
D10: A | E10: B | F10: C | G10: D | J10: A | K10: B | L10: C | M10: D
A11: 1 | B11: =Donnees!$F$117 -> SAINT CAST | D11: =Donnees!$I$119 -> 75 | E11: =Donnees!$I$120 -> 74 | F11: =Donnees!$I$121 -> 81 | G11: =Donnees!$I$122 -> 78 | H11: =Donnees!$I$124 -> 227 | I11: =Donnees!$S$124 -> 0 | J11: =Donnees!$R$119 -> 71 | K11: =Donnees!$R$120 -> 69 | L11: =Donnees!$R$121 -> 79 | M11: =Donnees!$R$122 -> 72 | N11: =Donnees!$R$124 -> 212 | O11: =Donnees!$T$124 -> 0 | P11: =Donnees!$G$124 -> 439 | Q11: =IF(OR(I11>0,O11>0),"DIS",MAX(D11:G11)+MAX(J11:M11)) -> 160 | R11: =SMALL($D11:$G11,1)+IF($O$8=3,SMALL($J11:$M11,2),SMALL($J11:$M11,1)) -> 143 | S11: =SMALL($D11:$G11,2)+IF($O$8=3,SMALL($J11:$M11,3),SMALL($J11:$M11,2)) -> 146 | T11: =IF(Q11="dis",999,IF(Q11<100,0&Q11,Q11)) -> 160 | U11: =IF(R11="dis",999,IF(R11<100,0&R11,R11)) -> 143 | V11: =IF(S11="dis",999,IF(S11<100,0&S11,S11)) -> 146 | W11: =CONCATENATE(T11,U11,V11,) -> 160143146 | X11: 1 | Z11: BAUGE | AB11: 86 | AC11: 96 | AD11: 100 | AE11: 101 | AF11: 282 | AG11: 0 | AH11: 83 | AI11: 95 | AJ11: 92 | AK11: 101 | AL11: 270 | AM11: 0 | AN11: 552 | AO11: 202 | AP11: 169 | AQ11: 188 | AR11: 202 | AS11: 169 | AT11: 188 | AU11: 202169188 | AV11: 14
A12: 2 | B12: =Donnees!$F$108 -> SABLES D'OR | D12: =Donnees!$I$110 -> 75 | E12: =Donnees!$I$111 -> 82 | F12: =Donnees!$I$112 -> 88 | G12: =Donnees!$I$113 -> 90 | H12: =Donnees!$I$115 -> 245 | I12: =Donnees!$S$115 -> 0 | J12: =Donnees!$R$110 -> 78 | K12: =Donnees!$R$111 -> 79 | L12: =Donnees!$R$112 -> 75 | M12: =Donnees!$R$113 -> 88 | N12: =Donnees!$R$115 -> 232 | O12: =Donnees!$T$115 -> 0 | P12: =Donnees!$G$115 -> 477 | Q12: =IF(OR(I12>0,O12>0),"DIS",MAX(D12:G12)+MAX(J12:M12)) -> 178 | R12: =SMALL($D12:$G12,1)+IF($O$8=3,SMALL($J12:$M12,2),SMALL($J12:$M12,1)) -> 150 | S12: =SMALL($D12:$G12,2)+IF($O$8=3,SMALL($J12:$M12,3),SMALL($J12:$M12,2)) -> 160 | T12: =IF(Q12="dis",999,IF(Q12<100,0&Q12,Q12)) -> 178 | U12: =IF(R12="dis",999,IF(R12<100,0&R12,R12)) -> 150 | V12: =IF(S12="dis",999,IF(S12<100,0&S12,S12)) -> 160 | W12: =CONCATENATE(T12,U12,V12,) -> 178150160 | X12: 2 | Z12: BOIS D'O | AB12: 89 | AC12: 92 | AD12: 92 | AE12: 98 | AF12: 273 | AG12: 0 | AH12: 87 | AI12: 92 | AJ12: 95 | AK12: 92 | AL12: 271 | AM12: 0 | AN12: 544 | AO12: 193 | AP12: 176 | AQ12: 184 | AR12: 193 | AS12: 176 | AT12: 184 | AU12: 193176184 | AV12: 12
A13: 3 | B13: =Donnees!$F$81 -> NANTES ERDRE | D13: =Donnees!$I$83 -> 76 | E13: =Donnees!$I$84 -> 85 | F13: =Donnees!$I$85 -> 84 | G13: =Donnees!$I$86 -> 95 | H13: =Donnees!$I$88 -> 245 | I13: =Donnees!$S$88 -> 0 | J13: =Donnees!$R$83 -> 77 | K13: =Donnees!$R$84 -> 78 | L13: =Donnees!$R$85 -> 79 | M13: =Donnees!$R$86 -> 83 | N13: =Donnees!$R$88 -> 234 | O13: =Donnees!$T$88 -> 0 | P13: =Donnees!$G$88 -> 479 | Q13: =IF(OR(I13>0,O13>0),"DIS",MAX(D13:G13)+MAX(J13:M13)) -> 178 | R13: =SMALL($D13:$G13,1)+IF($O$8=3,SMALL($J13:$M13,2),SMALL($J13:$M13,1)) -> 153 | S13: =SMALL($D13:$G13,2)+IF($O$8=3,SMALL($J13:$M13,3),SMALL($J13:$M13,2)) -> 162 | T13: =IF(Q13="dis",999,IF(Q13<100,0&Q13,Q13)) -> 178 | U13: =IF(R13="dis",999,IF(R13<100,0&R13,R13)) -> 153 | V13: =IF(S13="dis",999,IF(S13<100,0&S13,S13)) -> 162 | W13: =CONCATENATE(T13,U13,V13,) -> 178153162 | X13: 3 | Z13: CH. CHEVERNY | AB13: 88 | AC13: 78 | AD13: 87 | AE13: 93 | AF13: 253 | AG13: 0 | AH13: 85 | AI13: 77 | AJ13: 90 | AK13: 98 | AL13: 252 | AM13: 0 | AN13: 505 | AO13: 191 | AP13: 155 | AQ13: 172 | AR13: 191 | AS13: 155 | AT13: 172 | AU13: 191155172 | AV13: 6
A14: 4 | B14: =Donnees!$F$36 -> CHARTRES FONTENAY | D14: =Donnees!$I$38 -> 78 | E14: =Donnees!$I$39 -> 78 | F14: =Donnees!$I$40 -> 80 | G14: =Donnees!$I$41 -> 83 | H14: =Donnees!$I$43 -> 236 | I14: =Donnees!$S$43 -> 0 | J14: =Donnees!$R$38 -> 91 | K14: =Donnees!$R$39 -> 75 | L14: =Donnees!$R$40 -> 83 | M14: =Donnees!$R$41 -> 90 | N14: =Donnees!$R$43 -> 248 | O14: =Donnees!$T$43 -> 0 | P14: =Donnees!$G$43 -> 484 | Q14: =IF(OR(I14>0,O14>0),"DIS",MAX(D14:G14)+MAX(J14:M14)) -> 174 | R14: =SMALL($D14:$G14,1)+IF($O$8=3,SMALL($J14:$M14,2),SMALL($J14:$M14,1)) -> 153 | S14: =SMALL($D14:$G14,2)+IF($O$8=3,SMALL($J14:$M14,3),SMALL($J14:$M14,2)) -> 161 | T14: =IF(Q14="dis",999,IF(Q14<100,0&Q14,Q14)) -> 174 | U14: =IF(R14="dis",999,IF(R14<100,0&R14,R14)) -> 153 | V14: =IF(S14="dis",999,IF(S14<100,0&S14,S14)) -> 161 | W14: =CONCATENATE(T14,U14,V14,) -> 174153161 | X14: 4 | Z14: CHARTRES FONTENAY | AB14: 78 | AC14: 78 | AD14: 80 | AE14: 83 | AF14: 236 | AG14: 0 | AH14: 91 | AI14: 75 | AJ14: 83 | AK14: 90 | AL14: 248 | AM14: 0 | AN14: 484 | AO14: 174 | AP14: 153 | AQ14: 161 | AR14: 174 | AS14: 153 | AT14: 161 | AU14: 174153161 | AV14: 4
A15: 5 | B15: =Donnees!$F$126 -> SAVENAY | D15: =Donnees!$I$128 -> 81 | E15: =Donnees!$I$129 -> 88 | F15: =Donnees!$I$130 -> 77 | G15: =Donnees!$I$131 -> 84 | H15: =Donnees!$I$133 -> 242 | I15: =Donnees!$S$133 -> 0 | J15: =Donnees!$R$128 -> 91 | K15: =Donnees!$R$129 -> 78 | L15: =Donnees!$R$130 -> 83 | M15: =Donnees!$R$131 -> 90 | N15: =Donnees!$R$133 -> 251 | O15: =Donnees!$T$133 -> 0 | P15: =Donnees!$G$133 -> 493 | Q15: =IF(OR(I15>0,O15>0),"DIS",MAX(D15:G15)+MAX(J15:M15)) -> 179 | R15: =SMALL($D15:$G15,1)+IF($O$8=3,SMALL($J15:$M15,2),SMALL($J15:$M15,1)) -> 155 | S15: =SMALL($D15:$G15,2)+IF($O$8=3,SMALL($J15:$M15,3),SMALL($J15:$M15,2)) -> 164 | T15: =IF(Q15="dis",999,IF(Q15<100,0&Q15,Q15)) -> 179 | U15: =IF(R15="dis",999,IF(R15<100,0&R15,R15)) -> 155 | V15: =IF(S15="dis",999,IF(S15<100,0&S15,S15)) -> 164 | W15: =CONCATENATE(T15,U15,V15,) -> 179155164 | X15: 5 | Z15: CHOLET | AB15: 89 | AC15: 85 | AD15: 88 | AE15: 96 | AF15: 262 | AG15: 0 | AH15: 82 | AI15: 99 | AJ15: 84 | AK15: 93 | AL15: 259 | AM15: 0 | AN15: 521 | AO15: 195 | AP15: 167 | AQ15: 172 | AR15: 195 | AS15: 167 | AT15: 172 | AU15: 195167172 | AV15: 10
A16: 6 | B16: =Donnees!$F$27 -> CH. CHEVERNY | D16: =Donnees!$I$29 -> 88 | E16: =Donnees!$I$30 -> 78 | F16: =Donnees!$I$31 -> 87 | G16: =Donnees!$I$32 -> 93 | H16: =Donnees!$I$34 -> 253 | I16: =Donnees!$S$34 -> 0 | J16: =Donnees!$R$29 -> 85 | K16: =Donnees!$R$30 -> 77 | L16: =Donnees!$R$31 -> 90 | M16: =Donnees!$R$32 -> 98 | N16: =Donnees!$R$34 -> 252 | O16: =Donnees!$T$34 -> 0 | P16: =Donnees!$G$34 -> 505 | Q16: =IF(OR(I16>0,O16>0),"DIS",MAX(D16:G16)+MAX(J16:M16)) -> 191 | R16: =SMALL($D16:$G16,1)+IF($O$8=3,SMALL($J16:$M16,2),SMALL($J16:$M16,1)) -> 155 | S16: =SMALL($D16:$G16,2)+IF($O$8=3,SMALL($J16:$M16,3),SMALL($J16:$M16,2)) -> 172 | T16: =IF(Q16="dis",999,IF(Q16<100,0&Q16,Q16)) -> 191 | U16: =IF(R16="dis",999,IF(R16<100,0&R16,R16)) -> 155 | V16: =IF(S16="dis",999,IF(S16<100,0&S16,S16)) -> 172 | W16: =CONCATENATE(T16,U16,V16,) -> 191155172 | X16: 6 | Z16: GLORIETTE | AB16: 97 | AC16: 82 | AD16: 95 | AE16: 103 | AF16: 274 | AG16: 0 | AH16: 83 | AI16: 89 | AJ16: 96 | AK16: 92 | AL16: 264 | AM16: 0 | AN16: 538 | AO16: 199 | AP16: 165 | AQ16: 184 | AR16: 199 | AS16: 165 | AT16: 184 | AU16: 199165184 | AV16: 11
A17: 7 | B17: =Donnees!$F$72 -> LAVAL | D17: =Donnees!$I$74 -> 75 | E17: =Donnees!$I$75 -> 89 | F17: =Donnees!$I$76 -> 94 | G17: =Donnees!$I$77 -> 93 | H17: =Donnees!$I$79 -> 257 | I17: =Donnees!$S$79 -> 0 | J17: =Donnees!$R$74 -> 81 | K17: =Donnees!$R$75 -> 82 | L17: =Donnees!$R$76 -> 96 | M17: =Donnees!$R$77 -> 91 | N17: =Donnees!$R$79 -> 254 | O17: =Donnees!$T$79 -> 0 | P17: =Donnees!$G$79 -> 511 | Q17: =IF(OR(I17>0,O17>0),"DIS",MAX(D17:G17)+MAX(J17:M17)) -> 190 | R17: =SMALL($D17:$G17,1)+IF($O$8=3,SMALL($J17:$M17,2),SMALL($J17:$M17,1)) -> 156 | S17: =SMALL($D17:$G17,2)+IF($O$8=3,SMALL($J17:$M17,3),SMALL($J17:$M17,2)) -> 171 | T17: =IF(Q17="dis",999,IF(Q17<100,0&Q17,Q17)) -> 190 | U17: =IF(R17="dis",999,IF(R17<100,0&R17,R17)) -> 156 | V17: =IF(S17="dis",999,IF(S17<100,0&S17,S17)) -> 171 | W17: =CONCATENATE(T17,U17,V17,) -> 190156171 | X17: 7 | Z17: LAC AU DUC | AB17: 77 | AC17: 96 | AD17: 93 | AE17: 90 | AF17: 260 | AG17: 0 | AH17: 73 | AI17: 89 | AJ17: 89 | AK17: 97 | AL17: 251 | AM17: 0 | AN17: 511 | AO17: 193 | AP17: 150 | AQ17: 179 | AR17: 193 | AS17: 150 | AT17: 179 | AU17: 193150179 | AV17: 8
A18: 8 | B18: =Donnees!$F$63 -> LAC AU DUC | D18: =Donnees!$I$65 -> 77 | E18: =Donnees!$I$66 -> 96 | F18: =Donnees!$I$67 -> 93 | G18: =Donnees!$I$68 -> 90 | H18: =Donnees!$I$70 -> 260 | I18: =Donnees!$S$70 -> 0 | J18: =Donnees!$R$65 -> 73 | K18: =Donnees!$R$66 -> 89 | L18: =Donnees!$R$67 -> 89 | M18: =Donnees!$R$68 -> 97 | N18: =Donnees!$R$70 -> 251 | O18: =Donnees!$T$70 -> 0 | P18: =Donnees!$G$70 -> 511 | Q18: =IF(OR(I18>0,O18>0),"DIS",MAX(D18:G18)+MAX(J18:M18)) -> 193 | R18: =SMALL($D18:$G18,1)+IF($O$8=3,SMALL($J18:$M18,2),SMALL($J18:$M18,1)) -> 150 | S18: =SMALL($D18:$G18,2)+IF($O$8=3,SMALL($J18:$M18,3),SMALL($J18:$M18,2)) -> 179 | T18: =IF(Q18="dis",999,IF(Q18<100,0&Q18,Q18)) -> 193 | U18: =IF(R18="dis",999,IF(R18<100,0&R18,R18)) -> 150 | V18: =IF(S18="dis",999,IF(S18<100,0&S18,S18)) -> 179 | W18: =CONCATENATE(T18,U18,V18,) -> 193150179 | X18: 8 | Z18: LAVAL | AB18: 75 | AC18: 89 | AD18: 94 | AE18: 93 | AF18: 257 | AG18: 0 | AH18: 81 | AI18: 82 | AJ18: 96 | AK18: 91 | AL18: 254 | AM18: 0 | AN18: 511 | AO18: 190 | AP18: 156 | AQ18: 171 | AR18: 190 | AS18: 156 | AT18: 171 | AU18: 190156171 | AV18: 7
A19: 9 | B19: =Donnees!$F$90 -> ORLEANS DONNERY | D19: =Donnees!$I$92 -> 85 | E19: =Donnees!$I$93 -> 99 | F19: =Donnees!$I$94 -> 92 | G19: =Donnees!$I$95 -> 90 | H19: =Donnees!$I$97 -> 267 | I19: =Donnees!$S$97 -> 0 | J19: =Donnees!$R$92 -> 84 | K19: =Donnees!$R$93 -> 89 | L19: =Donnees!$R$94 -> 78 | M19: =Donnees!$R$95 -> 95 | N19: =Donnees!$R$97 -> 251 | O19: =Donnees!$T$97 -> 0 | P19: =Donnees!$G$97 -> 518 | Q19: =IF(OR(I19>0,O19>0),"DIS",MAX(D19:G19)+MAX(J19:M19)) -> 194 | R19: =SMALL($D19:$G19,1)+IF($O$8=3,SMALL($J19:$M19,2),SMALL($J19:$M19,1)) -> 163 | S19: =SMALL($D19:$G19,2)+IF($O$8=3,SMALL($J19:$M19,3),SMALL($J19:$M19,2)) -> 174 | T19: =IF(Q19="dis",999,IF(Q19<100,0&Q19,Q19)) -> 194 | U19: =IF(R19="dis",999,IF(R19<100,0&R19,R19)) -> 163 | V19: =IF(S19="dis",999,IF(S19<100,0&S19,S19)) -> 174 | W19: =CONCATENATE(T19,U19,V19,) -> 194163174 | X19: 9 | Z19: NANTES ERDRE | AB19: 76 | AC19: 85 | AD19: 84 | AE19: 95 | AF19: 245 | AG19: 0 | AH19: 77 | AI19: 78 | AJ19: 79 | AK19: 83 | AL19: 234 | AM19: 0 | AN19: 479 | AO19: 178 | AP19: 153 | AQ19: 162 | AR19: 178 | AS19: 153 | AT19: 162 | AU19: 178153162 | AV19: 3
A20: 10 | B20: =Donnees!$F$45 -> CHOLET | D20: =Donnees!$I$47 -> 89 | E20: =Donnees!$I$48 -> 85 | F20: =Donnees!$I$49 -> 88 | G20: =Donnees!$I$50 -> 96 | H20: =Donnees!$I$52 -> 262 | I20: =Donnees!$S$52 -> 0 | J20: =Donnees!$R$47 -> 82 | K20: =Donnees!$R$48 -> 99 | L20: =Donnees!$R$49 -> 84 | M20: =Donnees!$R$50 -> 93 | N20: =Donnees!$R$52 -> 259 | O20: =Donnees!$T$52 -> 0 | P20: =Donnees!$G$52 -> 521 | Q20: =IF(OR(I20>0,O20>0),"DIS",MAX(D20:G20)+MAX(J20:M20)) -> 195 | R20: =SMALL($D20:$G20,1)+IF($O$8=3,SMALL($J20:$M20,2),SMALL($J20:$M20,1)) -> 167 | S20: =SMALL($D20:$G20,2)+IF($O$8=3,SMALL($J20:$M20,3),SMALL($J20:$M20,2)) -> 172 | T20: =IF(Q20="dis",999,IF(Q20<100,0&Q20,Q20)) -> 195 | U20: =IF(R20="dis",999,IF(R20<100,0&R20,R20)) -> 167 | V20: =IF(S20="dis",999,IF(S20<100,0&S20,S20)) -> 172 | W20: =CONCATENATE(T20,U20,V20,) -> 195167172 | X20: 10 | Z20: ORLEANS DONNERY | AB20: 85 | AC20: 99 | AD20: 92 | AE20: 90 | AF20: 267 | AG20: 0 | AH20: 84 | AI20: 89 | AJ20: 78 | AK20: 95 | AL20: 251 | AM20: 0 | AN20: 518 | AO20: 194 | AP20: 163 | AQ20: 174 | AR20: 194 | AS20: 163 | AT20: 174 | AU20: 194163174 | AV20: 9
A21: 11 | B21: =Donnees!$F$54 -> GLORIETTE | D21: =Donnees!$I$56 -> 97 | E21: =Donnees!$I$57 -> 82 | F21: =Donnees!$I$58 -> 95 | G21: =Donnees!$I$59 -> 103 | H21: =Donnees!$I$61 -> 274 | I21: =Donnees!$S$61 -> 0 | J21: =Donnees!$R$56 -> 83 | K21: =Donnees!$R$57 -> 89 | L21: =Donnees!$R$58 -> 96 | M21: =Donnees!$R$59 -> 92 | N21: =Donnees!$R$61 -> 264 | O21: =Donnees!$T$61 -> 0 | P21: =Donnees!$G$61 -> 538 | Q21: =IF(OR(I21>0,O21>0),"DIS",MAX(D21:G21)+MAX(J21:M21)) -> 199 | R21: =SMALL($D21:$G21,1)+IF($O$8=3,SMALL($J21:$M21,2),SMALL($J21:$M21,1)) -> 165 | S21: =SMALL($D21:$G21,2)+IF($O$8=3,SMALL($J21:$M21,3),SMALL($J21:$M21,2)) -> 184 | T21: =IF(Q21="dis",999,IF(Q21<100,0&Q21,Q21)) -> 199 | U21: =IF(R21="dis",999,IF(R21<100,0&R21,R21)) -> 165 | V21: =IF(S21="dis",999,IF(S21<100,0&S21,S21)) -> 184 | W21: =CONCATENATE(T21,U21,V21,) -> 199165184 | X21: 11 | Z21: PLENEUF VAL ANDRE | AB21: 94 | AC21: 87 | AD21: 100 | AE21: 97 | AF21: 278 | AG21: 0 | AH21: 93 | AI21: 95 | AJ21: 84 | AK21: 89 | AL21: 266 | AM21: 0 | AN21: 544 | AO21: 195 | AP21: 171 | AQ21: 183 | AR21: 195 | AS21: 171 | AT21: 183 | AU21: 195171183 | AV21: 13
A22: 12 | B22: =Donnees!$F$18 -> BOIS D'O | D22: =Donnees!$I$20 -> 89 | E22: =Donnees!$I$21 -> 92 | F22: =Donnees!$I$22 -> 92 | G22: =Donnees!$I$23 -> 98 | H22: =Donnees!$I$25 -> 273 | I22: =Donnees!$S$25 -> 0 | J22: =Donnees!$R$20 -> 87 | K22: =Donnees!$R$21 -> 92 | L22: =Donnees!$R$22 -> 95 | M22: =Donnees!$R$23 -> 92 | N22: =Donnees!$R$25 -> 271 | O22: =Donnees!$T$25 -> 0 | P22: =Donnees!$G$25 -> 544 | Q22: =IF(OR(I22>0,O22>0),"DIS",MAX(D22:G22)+MAX(J22:M22)) -> 193 | R22: =SMALL($D22:$G22,1)+IF($O$8=3,SMALL($J22:$M22,2),SMALL($J22:$M22,1)) -> 176 | S22: =SMALL($D22:$G22,2)+IF($O$8=3,SMALL($J22:$M22,3),SMALL($J22:$M22,2)) -> 184 | T22: =IF(Q22="dis",999,IF(Q22<100,0&Q22,Q22)) -> 193 | U22: =IF(R22="dis",999,IF(R22<100,0&R22,R22)) -> 176 | V22: =IF(S22="dis",999,IF(S22<100,0&S22,S22)) -> 184 | W22: =CONCATENATE(T22,U22,V22,) -> 193176184 | X22: 12 | Z22: SABLES D'OR | AB22: 75 | AC22: 82 | AD22: 88 | AE22: 90 | AF22: 245 | AG22: 0 | AH22: 78 | AI22: 79 | AJ22: 75 | AK22: 88 | AL22: 232 | AM22: 0 | AN22: 477 | AO22: 178 | AP22: 150 | AQ22: 160 | AR22: 178 | AS22: 150 | AT22: 160 | AU22: 178150160 | AV22: 2
A23: 13 | B23: =Donnees!$F$99 -> PLENEUF VAL ANDRE | D23: =Donnees!$I$101 -> 94 | E23: =Donnees!$I$102 -> 87 | F23: =Donnees!$I$103 -> 100 | G23: =Donnees!$I$104 -> 97 | H23: =Donnees!$I$106 -> 278 | I23: =Donnees!$S$106 -> 0 | J23: =Donnees!$R$101 -> 93 | K23: =Donnees!$R$102 -> 95 | L23: =Donnees!$R$103 -> 84 | M23: =Donnees!$R$104 -> 89 | N23: =Donnees!$R$106 -> 266 | O23: =Donnees!$T$106 -> 0 | P23: =Donnees!$G$106 -> 544 | Q23: =IF(OR(I23>0,O23>0),"DIS",MAX(D23:G23)+MAX(J23:M23)) -> 195 | R23: =SMALL($D23:$G23,1)+IF($O$8=3,SMALL($J23:$M23,2),SMALL($J23:$M23,1)) -> 171 | S23: =SMALL($D23:$G23,2)+IF($O$8=3,SMALL($J23:$M23,3),SMALL($J23:$M23,2)) -> 183 | T23: =IF(Q23="dis",999,IF(Q23<100,0&Q23,Q23)) -> 195 | U23: =IF(R23="dis",999,IF(R23<100,0&R23,R23)) -> 171 | V23: =IF(S23="dis",999,IF(S23<100,0&S23,S23)) -> 183 | W23: =CONCATENATE(T23,U23,V23,) -> 195171183 | X23: 13 | Z23: SAINT CAST | AB23: 75 | AC23: 74 | AD23: 81 | AE23: 78 | AF23: 227 | AG23: 0 | AH23: 71 | AI23: 69 | AJ23: 79 | AK23: 72 | AL23: 212 | AM23: 0 | AN23: 439 | AO23: 160 | AP23: 143 | AQ23: 146 | AR23: 160 | AS23: 143 | AT23: 146 | AU23: 160143146 | AV23: 1
A24: 14 | B24: =Donnees!$F$9 -> BAUGE | D24: =Donnees!$I$11 -> 86 | E24: =Donnees!$I$12 -> 96 | F24: =Donnees!$I$13 -> 100 | G24: =Donnees!$I$14 -> 101 | H24: =Donnees!$I$16 -> 282 | I24: =Donnees!$S$16 -> 0 | J24: =Donnees!$R$11 -> 83 | K24: =Donnees!$R$12 -> 95 | L24: =Donnees!$R$13 -> 92 | M24: =Donnees!$R$14 -> 101 | N24: =Donnees!$R$16 -> 270 | O24: =Donnees!$T$16 -> 0 | P24: =Donnees!$G$16 -> 552 | Q24: =IF(OR(I24>0,O24>0),"DIS",MAX(D24:G24)+MAX(J24:M24)) -> 202 | R24: =SMALL($D24:$G24,1)+IF($O$8=3,SMALL($J24:$M24,2),SMALL($J24:$M24,1)) -> 169 | S24: =SMALL($D24:$G24,2)+IF($O$8=3,SMALL($J24:$M24,3),SMALL($J24:$M24,2)) -> 188 | T24: =IF(Q24="dis",999,IF(Q24<100,0&Q24,Q24)) -> 202 | U24: =IF(R24="dis",999,IF(R24<100,0&R24,R24)) -> 169 | V24: =IF(S24="dis",999,IF(S24<100,0&S24,S24)) -> 188 | W24: =CONCATENATE(T24,U24,V24,) -> 202169188 | X24: 14 | Z24: SAVENAY | AB24: 81 | AC24: 88 | AD24: 77 | AE24: 84 | AF24: 242 | AG24: 0 | AH24: 91 | AI24: 78 | AJ24: 83 | AK24: 90 | AL24: 251 | AM24: 0 | AN24: 493 | AO24: 179 | AP24: 155 | AQ24: 164 | AR24: 179 | AS24: 155 | AT24: 164 | AU24: 179155164 | AV24: 5
A25: 15 | B25: =Donnees!$F$135 -> 0 | D25: =Donnees!$I$137 -> 0 | E25: =Donnees!$I$138 -> 0 | F25: =Donnees!$I$139 -> 0 | G25: =Donnees!$I$140 -> 0 | H25: =Donnees!$I$142 -> 0 | I25: =Donnees!$S$142 -> 0 | J25: =Donnees!$R$137 -> 0 | K25: =Donnees!$R$138 -> 0 | L25: =Donnees!$R$139 -> 0 | M25: =Donnees!$R$140 -> 0 | N25: =Donnees!$R$142 -> 0 | O25: =Donnees!$T$142 -> 0 | P25: =Donnees!$G$142 -> 0 | Q25: =IF(OR(I25>0,O25>0),"DIS",MAX(D25:G25)+MAX(J25:M25)) -> 0 | R25: =SMALL($D25:$G25,1)+IF($O$8=3,SMALL($J25:$M25,2),SMALL($J25:$M25,1)) -> 0 | S25: =SMALL($D25:$G25,2)+IF($O$8=3,SMALL($J25:$M25,3),SMALL($J25:$M25,2)) -> 0 | T25: =IF(Q25="dis",999,IF(Q25<100,0&Q25,Q25)) -> 00 | U25: =IF(R25="dis",999,IF(R25<100,0&R25,R25)) -> 00 | V25: =IF(S25="dis",999,IF(S25<100,0&S25,S25)) -> 00 | W25: =CONCATENATE(T25,U25,V25,) -> 000000 | X25: 15 | Z25: 0 | AB25: 0 | AC25: 0 | AD25: 0 | AE25: 0 | AF25: 0 | AG25: 0 | AH25: 0 | AI25: 0 | AJ25: 0 | AK25: 0 | AL25: 0 | AM25: 0 | AN25: 0 | AO25: 0 | AP25: 0 | AQ25: 0 | AR25: 00 | AS25: 00 | AT25: 00 | AU25: 000000 | AV25: 15
A26: 16 | B26: =Donnees!$F$144 -> 0 | D26: =Donnees!$I$146 -> 0 | E26: =Donnees!$I$147 -> 0 | F26: =Donnees!$I$148 -> 0 | G26: =Donnees!$I$149 -> 0 | H26: =Donnees!$I$151 -> 0 | I26: =Donnees!$S$151 -> 0 | J26: =Donnees!$R$146 -> 0 | K26: =Donnees!$R$147 -> 0 | L26: =Donnees!$R$148 -> 0 | M26: =Donnees!$R$149 -> 0 | N26: =Donnees!$R$151 -> 0 | O26: =Donnees!$T$151 -> 0 | P26: =Donnees!$G$151 -> 0 | Q26: 0 | R26: 0 | S26: 0 | T26: 00 | U26: 00 | V26: 00 | W26: 000000 | X26: 16 | Z26: 0 | AB26: 0 | AC26: 0 | AD26: 0 | AE26: 0 | AF26: 0 | AG26: 0 | AH26: 0 | AI26: 0 | AJ26: 0 | AK26: 0 | AL26: 0 | AM26: 0 | AN26: 0 | AO26: 0 | AP26: 0 | AQ26: 0 | AR26: 00 | AS26: 00 | AT26: 00 | AU26: 000000 | AV26: 16
A27: 17 | B27: =Donnees!$F$153 -> 0 | D27: =Donnees!$I$155 -> 0 | E27: =Donnees!$I$156 -> 0 | F27: =Donnees!$I$157 -> 0 | G27: =Donnees!$I$158 -> 0 | H27: =Donnees!$I$160 -> 0 | I27: =Donnees!$S$160 -> 0 | J27: =Donnees!$R$155 -> 0 | K27: =Donnees!$R$156 -> 0 | L27: =Donnees!$R$157 -> 0 | M27: =Donnees!$R$158 -> 0 | N27: =Donnees!$R$160 -> 0 | O27: =Donnees!$T$160 -> 0 | P27: =Donnees!$G$160 -> 0 | Q27: 0 | R27: 0 | S27: 0 | T27: 00 | U27: 00 | V27: 00 | W27: 000000 | X27: 17 | Z27: 0 | AB27: 0 | AC27: 0 | AD27: 0 | AE27: 0 | AF27: 0 | AG27: 0 | AH27: 0 | AI27: 0 | AJ27: 0 | AK27: 0 | AL27: 0 | AM27: 0 | AN27: 0 | AO27: 0 | AP27: 0 | AQ27: 0 | AR27: 00 | AS27: 00 | AT27: 00 | AU27: 000000 | AV27: 17
A28: 18 | B28: =Donnees!$F$162 -> 0 | D28: =Donnees!$I$164 -> 0 | E28: =Donnees!$I$165 -> 0 | F28: =Donnees!$I$166 -> 0 | G28: =Donnees!$I$167 -> 0 | H28: =Donnees!$I$169 -> 0 | I28: =Donnees!$S$169 -> 0 | J28: =Donnees!$R$164 -> 0 | K28: =Donnees!$R$165 -> 0 | L28: =Donnees!$R$166 -> 0 | M28: =Donnees!$R$167 -> 0 | N28: =Donnees!$R$169 -> 0 | O28: =Donnees!$T$169 -> 0 | P28: =Donnees!$G$169 -> 0 | Q28: 0 | R28: 0 | S28: 0 | T28: 00 | U28: 00 | V28: 00 | W28: 000000 | X28: 18 | Z28: 0 | AB28: 0 | AC28: 0 | AD28: 0 | AE28: 0 | AF28: 0 | AG28: 0 | AH28: 0 | AI28: 0 | AJ28: 0 | AK28: 0 | AL28: 0 | AM28: 0 | AN28: 0 | AO28: 0 | AP28: 0 | AQ28: 0 | AR28: 00 | AS28: 00 | AT28: 00 | AU28: 000000 | AV28: 18
A29: 19 | B29: =Donnees!$F$171 -> 0 | D29: =Donnees!$I$173 -> 0 | E29: =Donnees!$I$174 -> 0 | F29: =Donnees!$I$175 -> 0 | G29: =Donnees!$I$176 -> 0 | H29: =Donnees!$I$178 -> 0 | I29: =Donnees!$S$178 -> 0 | J29: =Donnees!$R$173 -> 0 | K29: =Donnees!$R$174 -> 0 | L29: =Donnees!$R$175 -> 0 | M29: =Donnees!$R$176 -> 0 | N29: =Donnees!$R$178 -> 0 | O29: =Donnees!$T$178 -> 0 | P29: =Donnees!$G$178 -> 0 | Q29: 0 | R29: 0 | S29: 0 | T29: 00 | U29: 00 | V29: 00 | W29: 000000 | X29: 19 | Z29: 0 | AB29: 0 | AC29: 0 | AD29: 0 | AE29: 0 | AF29: 0 | AG29: 0 | AH29: 0 | AI29: 0 | AJ29: 0 | AK29: 0 | AL29: 0 | AM29: 0 | AN29: 0 | AO29: 0 | AP29: 0 | AQ29: 0 | AR29: 00 | AS29: 00 | AT29: 00 | AU29: 000000 | AV29: 19
A30: 20 | B30: =Donnees!$F$180 -> 0 | D30: =Donnees!$I$182 -> 0 | E30: =Donnees!$I$183 -> 0 | F30: =Donnees!$I$184 -> 0 | G30: =Donnees!$I$185 -> 0 | H30: =Donnees!$I$187 -> 0 | I30: =Donnees!$S$187 -> 0 | J30: =Donnees!$R$182 -> 0 | K30: =Donnees!$R$183 -> 0 | L30: =Donnees!$R$184 -> 0 | M30: =Donnees!$R$185 -> 0 | N30: =Donnees!$R$187 -> 0 | O30: =Donnees!$T$187 -> 0 | P30: =Donnees!$G$187 -> 0 | Q30: 0 | R30: 0 | S30: 0 | T30: 00 | U30: 00 | V30: 00 | W30: 000000 | X30: 20 | Z30: 0 | AB30: 0 | AC30: 0 | AD30: 0 | AE30: 0 | AF30: 0 | AG30: 0 | AH30: 0 | AI30: 0 | AJ30: 0 | AK30: 0 | AL30: 0 | AM30: 0 | AN30: 0 | AO30: 0 | AP30: 0 | AQ30: 0 | AR30: 00 | AS30: 00 | AT30: 00 | AU30: 000000 | AV30: 20
A31: 21 | B31: =Donnees!$F$189 -> 0 | D31: =Donnees!$I$191 -> 0 | E31: =Donnees!$I$192 -> 0 | F31: =Donnees!$I$193 -> 0 | G31: =Donnees!$I$194 -> 0 | H31: =Donnees!$I$196 -> 0 | I31: =Donnees!$S$196 -> 0 | J31: =Donnees!$R$191 -> 0 | K31: =Donnees!$R$192 -> 0 | L31: =Donnees!$R$193 -> 0 | M31: =Donnees!$R$194 -> 0 | N31: =Donnees!$R$196 -> 0 | O31: =Donnees!$T$196 -> 0 | P31: =Donnees!$G$196 -> 0 | Q31: 0 | R31: 0 | S31: 0 | T31: 00 | U31: 00 | V31: 00 | W31: 000000 | X31: 21 | Z31: 0 | AB31: 0 | AC31: 0 | AD31: 0 | AE31: 0 | AF31: 0 | AG31: 0 | AH31: 0 | AI31: 0 | AJ31: 0 | AK31: 0 | AL31: 0 | AM31: 0 | AN31: 0 | AO31: 0 | AP31: 0 | AQ31: 0 | AR31: 00 | AS31: 00 | AT31: 00 | AU31: 000000 | AV31: 21
A32: 22 | B32: =Donnees!$F$198 -> 0 | D32: =Donnees!$I$200 -> 0 | E32: =Donnees!$I$201 -> 0 | F32: =Donnees!$I$202 -> 0 | G32: =Donnees!$I$203 -> 0 | H32: =Donnees!$I$205 -> 0 | I32: =Donnees!$S$205 -> 0 | J32: =Donnees!$R$200 -> 0 | K32: =Donnees!$R$201 -> 0 | L32: =Donnees!$R$202 -> 0 | M32: =Donnees!$R$203 -> 0 | N32: =Donnees!$R$205 -> 0 | O32: =Donnees!$T$205 -> 0 | P32: =Donnees!$G$205 -> 0 | Q32: 0 | R32: 0 | S32: 0 | T32: 00 | U32: 00 | V32: 00 | W32: 000000 | X32: 22 | Z32: 0 | AB32: 0 | AC32: 0 | AD32: 0 | AE32: 0 | AF32: 0 | AG32: 0 | AH32: 0 | AI32: 0 | AJ32: 0 | AK32: 0 | AL32: 0 | AM32: 0 | AN32: 0 | AO32: 0 | AP32: 0 | AQ32: 0 | AR32: 00 | AS32: 00 | AT32: 00 | AU32: 000000 | AV32: 22
A33: 23 | B33: =Donnees!$F$207 -> 0 | D33: =Donnees!$I$209 -> 0 | E33: =Donnees!$I$210 -> 0 | F33: =Donnees!$I$211 -> 0 | G33: =Donnees!$I$212 -> 0 | H33: =Donnees!$I$214 -> 0 | I33: =Donnees!$S$214 -> 0 | J33: =Donnees!$R$209 -> 0 | K33: =Donnees!$R$210 -> 0 | L33: =Donnees!$R$211 -> 0 | M33: =Donnees!$R$212 -> 0 | N33: =Donnees!$R$214 -> 0 | O33: =Donnees!$T$214 -> 0 | P33: =Donnees!$G$214 -> 0 | Q33: 0 | R33: 0 | S33: 0 | T33: 00 | U33: 00 | V33: 00 | W33: 000000 | X33: 23 | Z33: 0 | AB33: 0 | AC33: 0 | AD33: 0 | AE33: 0 | AF33: 0 | AG33: 0 | AH33: 0 | AI33: 0 | AJ33: 0 | AK33: 0 | AL33: 0 | AM33: 0 | AN33: 0 | AO33: 0 | AP33: 0 | AQ33: 0 | AR33: 00 | AS33: 00 | AT33: 00 | AU33: 000000 | AV33: 23
A34: 24 | B34: =Donnees!$F$216 -> 0 | D34: =Donnees!$I$218 -> 0 | E34: =Donnees!$I$219 -> 0 | F34: =Donnees!$I$220 -> 0 | G34: =Donnees!$I$221 -> 0 | H34: =Donnees!$I$223 -> 0 | I34: =Donnees!$S$223 -> 0 | J34: =Donnees!$R$218 -> 0 | K34: =Donnees!$R$219 -> 0 | L34: =Donnees!$R$220 -> 0 | M34: =Donnees!$R$221 -> 0 | N34: =Donnees!$R$223 -> 0 | O34: =Donnees!$T$223 -> 0 | P34: =Donnees!$G$223 -> 0 | Q34: 0 | R34: 0 | S34: 0 | T34: 00 | U34: 00 | V34: 00 | W34: 000000 | X34: 24 | Z34: 0 | AB34: 0 | AC34: 0 | AD34: 0 | AE34: 0 | AF34: 0 | AG34: 0 | AH34: 0 | AI34: 0 | AJ34: 0 | AK34: 0 | AL34: 0 | AM34: 0 | AN34: 0 | AO34: 0 | AP34: 0 | AQ34: 0 | AR34: 00 | AS34: 00 | AT34: 00 | AU34: 000000 | AV34: 24
A35: 25 | B35: =Donnees!$F$225 -> 0 | D35: =Donnees!$I$227 -> 0 | E35: =Donnees!$I$228 -> 0 | F35: =Donnees!$I$229 -> 0 | G35: =Donnees!$I$230 -> 0 | H35: =Donnees!$I$232 -> 0 | I35: =Donnees!$S$232 -> 0 | J35: =Donnees!$R$227 -> 0 | K35: =Donnees!$R$228 -> 0 | L35: =Donnees!$R$229 -> 0 | M35: =Donnees!$R$230 -> 0 | N35: =Donnees!$R$232 -> 0 | O35: =Donnees!$T$232 -> 0 | P35: =Donnees!$G$232 -> 0 | Q35: 0 | R35: 0 | S35: 0 | T35: 00 | U35: 00 | V35: 00 | W35: 000000 | X35: 25 | Z35: 0 | AB35: 0 | AC35: 0 | AD35: 0 | AE35: 0 | AF35: 0 | AG35: 0 | AH35: 0 | AI35: 0 | AJ35: 0 | AK35: 0 | AL35: 0 | AM35: 0 | AN35: 0 | AO35: 0 | AP35: 0 | AQ35: 0 | AR35: 00 | AS35: 00 | AT35: 00 | AU35: 000000 | AV35: 25
A36: 26 | B36: =Donnees!$F$234 -> 0 | D36: =Donnees!$I$236 -> 0 | E36: =Donnees!$I$237 -> 0 | F36: =Donnees!$I$238 -> 0 | G36: =Donnees!$I$239 -> 0 | H36: =Donnees!$I$241 -> 0 | I36: =Donnees!$S$241 -> 0 | J36: =Donnees!$R$236 -> 0 | K36: =Donnees!$R$237 -> 0 | L36: =Donnees!$R$238 -> 0 | M36: =Donnees!$R$239 -> 0 | N36: =Donnees!$R$241 -> 0 | O36: =Donnees!$T$241 -> 0 | P36: =Donnees!$G$241 -> 0 | Q36: 0 | R36: 0 | S36: 0 | T36: 00 | U36: 00 | V36: 00 | W36: 000000 | X36: 26 | Z36: 0 | AB36: 0 | AC36: 0 | AD36: 0 | AE36: 0 | AF36: 0 | AG36: 0 | AH36: 0 | AI36: 0 | AJ36: 0 | AK36: 0 | AL36: 0 | AM36: 0 | AN36: 0 | AO36: 0 | AP36: 0 | AQ36: 0 | AR36: 00 | AS36: 00 | AT36: 00 | AU36: 000000 | AV36: 26
